Workbook

Sheet Modification History (hidden)
A2: Title | C2: GAAP
A3: Subject (IS YTD) | C3: IS
A4: Author (Comparable) | C4: Comparative MTD,QTD,YTD
A5: Keywords (Account) | C5: GL_ACCT_SEC
A6: Category (BUTree) | C6: Scope
A7: Company (BU) | C7: Scope
A8: Manager | C8: FinRpting
A9: Comments | C9: MTD,QTD,YTD,12Mo,24mo Trend
A18: 2016-08-24 | C18: Neal Hartley | E18: Created Combined Reports from existing GLS8094, GLS8291
A19: 2017-01-12 | C19: Neal Hartley | E19: Corrected formula in cell I230
A21: Dec 18, 2017 | C21: Neal Hartley | E21: Add additional Line for Non-Service Benefits. Once moved in account tree it will move expenses into their own line on the IS; out of O&M.
A23: Jan 26, 2018 | C23: Neal Hartley | E23: Add additional Line for Non-Service Flipped sign in OPERATING INCOME for expense nodes
A25: April 18, 2018 | C25: Neal Hartley | E25: Added range named NONCURRENT_ASSETS
A26: May 2018 | C26: Neal Hartley | E26: nVision application started having issues with running. Had to split out IS from BS in order for the application to process less data.
A27: 2018-05-01 | C27: Neal Hartley | E27: Name changed from GLS8291 to GAAP_BS1

Sheet Org Maps (hidden)
E1: Business Unit - SEGMENT_Cons Tree | P1: Effective : MARCH 2018 | W1: Business Units: LEGAL TREE GL_PRPT_CONS | AF1: MARCH 2018
A2: YTD IS | B2: MTD IS | C2: YTD BS | E2: 1st | F2: 2nd | G2: 3rd | H2: 4th | I2: 5th | J2: 6th | K2: 7th | L2: 8th | R2: YTD IS | S2: MTD IS | T2: BS
D4: GLOBAL | R4: IS8100 | S4: IS8700 | T4: GLS8300 | V4: AEP Consolidated | AF4: AEP_CONSOL
A5: IS8000 | B5: IS8800 | C5: GLS8200 | E5: AEP Consolidated | P5: AEP_CONSOL | W5: X999 AEP Consolidated Eliminations
F6: S999 AEP Consol Eliminations | W6: 100 American Electric Power Co.
F7: R999 Texas Merger Eliminations | W7: 103 AEP Service Corp
A8: IS8002 | B8: IS8802 | C8: GLS8202 | F8: Vertically Integrated Utilities | P8: VERT_INT | W8: 105 Public Liability
G9: S995 Vert Int Eliminations | W9: 122 AEP System Pool
G10: APCO Merged | W10: 154 AEP Credit, Inc
H11: S883 | W11: 189 Central Coal Company
A12: IS8011 | B12: IS8811 | C12: GLS8211 | H12: APCO Integrated Consolidated | P12: APCO_INT_CONSOL | W12: 204 AEP T&D Services, LLC
I13: S998 APCO Int Eliminations | W13: 209 Indiana Franklin Realty, Inc.
I14: 125 Central Appalachian Coal Company | W14: 224 Franklin Real Estate Company
I15: 217 Southern Appalachian Coal Company | W15: 353 AEP Utility Funding LLC
I16: 225 Cedar Coal Co. | W16: 364 AEP Nonutility Funding LLC
I17: APCO Corp Consolidated | P17: APCO_CORP_CONSOL | W17: 381 Energy Insurance Services
J18: S997 APCO Corp Eliminations | W18: 434 Kyte Works
J19: 410 Appalachian Rate Relief | R19: IS8179 | S19: IS8779 | T19: GLS8379 | W19: AEP Coal Consol | AF19: AEPCOAL_CONSOL
J20: APCO Distribution | P20: APCO_D | X20: X930 AEP Coal, Inc. Elim
K21: S884 APCO Distribution | X21: 302 AEP Coal, Inc.
K22: 140 Appalachian Power Company - Distribution | X22: 303 Snowcap Coal Company, Inc.
J23: APCO Transmission | P23: APCO_T | X23: 305 AEP Kentucky Coal, LLC
K24: S885 APCO Transmission | R24: IS8117 | S24: IS8717 | T24: GLS8317 | W24: AEP Generating Company | AF24: AEP_GEN_CONSOL
K25: 150 Appalachian Power Company - Transmission | X25: X896 Eliminations
J26: APCO Generation | P26: APCO_G | X26: AEP Corp Generating Company | AF26: AEG_CORP
K27: S886 APCO Generation | Y27: X924 AEG Elim
K28: 215 Appalachian Power Company - Generation | Y28: 153 AEP Generating Company
A29: IS8022 | B29: IS8822 | C29: GLS8222 | H29: Wheeling Power Co Consolidated | P29: WPCO_WIRES_CONSOL | Y29: 375 AEG - Lawrenceburg
I30: S898 Wheeling Int Eliminations | Y30: 377 AEG - Dresden
I31: Wheeling Power Co Consolidated | P31: WPCO_WIRES_CORP_CONS | Y31: Cook Coal Terminal | AF31: COOK_COAL
J32: S988 Wheeling Corp Eliminations | Z32: 270 Cook Coal Terminal
J33: 200 Wheeling Power Company - Transmission | Z33: RA270 CCT History Offset
J34: 210 Wheeling Power Company - Distribution | R34: IS8175 | S34: IS8775 | T34: GLS8375 | W34: AEP Investments Consolidated | AF34: AEPINV_CONSOL
J35: 413 Wheeling Power Company - Generation | X35: X987 AEP Investments Elim
G36: VERT_INT_L3 | P36: VERT_INT_L3 | X36: 185 AEP Energy Services, Inc.
A37: IS8034 | B37: IS8834 | C37: GLS8234 | H37: AEP Generating Company | P37: AEG | X37: 127 AEP Energy Service Gas Hold Co
I38: S896 AEG Int Eliminations | X38: AEP Investments Inc | AF38: AEP_INVEST
I39: AEP Corp Generating Company | P39: AEG_Corp | X39: 196 AEP Investments, Inc.
J40: S924 AEG Corp Eliminations | X40: 292 AEP MEMCO LLC
J41: 153 AEP Generating Company | X41: 293 AEP Elmwood LLC
J42: 377 AEG - Dresden | R42: IS8176 | S42: IS8776 | T42: GLS8376 | W42: AEP ProServ | AF42: AEP_PROSERV
J43: Cook Coal Terminal | P43: Cook_Coal | X43: X936 AEP Pro Serv Eliminations
K44: 270 Cook Coal Terminal | X44: 107 Diversified Ergy Contr LLC
A45: IS8014 | B45: IS8814 | C45: GLS8214 | H45: I&M Integrated Consolidated | P45: I&M_INT_CONSOL | X45: 143 AEP Pro Serv, Inc.
I46: S994 I&M Int Eliminations | X46: 319 United Sciences Testing, Inc
I47: 121 Price River Coal Company, Inc. | R47: IS8161 | S47: IS8761 | T47: GLS8361 | W47: AEP Energy Supply | AF47: AEP_ENERGY
I48: 202 Blackhawk Coal Company | X48: X887 AEP Energy Supply Elim
I49: 414 DCC Fuel 7, LLC | X49: 429 Amazon
I50: 416 DCC Fuel 8, LLC | X50: 102 AEP Energy Supply LLC
I51: 421 DCC Fuel 9, LLC | X51: OnSite Partners Consol | AF51: ONSITE_PARTNERS
I52: 426 DCC Fuel 10, LLC | Y52: X901 Onsite Eliminations
I53: 430 DCC Fuel 11, LLC | T53: Moved 12/2015 | Y53: 419 Onsite Partners
I54: I&M Corp Consolidated | P54: I&M_CORP_CONSOL | Y54: 425 Solar, LLC
J55: S993 I&M Corp Eliminations | X55: AEP Renewables | AF55: AEP_RENEW
J56: 280 Ind Mich River Transp Lakin | Y56: X902 Renewable Elim
J57: 120 Indiana Michigan Power Co. - Transmission | Y57: 422 AEP Renewables LLC
J58: 132 Indiana Michigan Power Co. - Generation | Y58: 427 Jucumba
J59: 170 Indiana Michigan Power Co. - Distribution | R59: IS8127 | S59: IS8727 | T59: GLS8327 | X59: AEP C&I Company, LLC Consol | AF59: AEP_C&I_CONSOL
J60: 190 Indiana Michigan Power Co. - Nuclear | Y60: X954 AEP C&I LLC Eliminations
A61: IS8016 | B61: IS8816 | C61: GLS8216 | H61: Kentucky Power Integrat Consol | P61: KYP_INT_CONSOL | Y61: 203 AEP C&I Company LLC
I62: S897 Ky Power Int Eliminations | R62: IS8128 | S62: IS8728 | T62: GLS8328 | Y62: Rep Holdco Inc. Consolidated | AF62: REPHLD_CONSOLIDATED
I63: Kentucky Power Corp Consol | P63: KYP_CORP_CONSOL | Z63: X955 Rep Holdco Inc
J64: S992 Ky Power Corp Eliminations | X64: Moved 8/2015 | Z64: S137 History Mutual Energy SWEPCO L.P
J65: 110 Kentucky Power Company - Distribution | R65: IS8130 | S65: IS8730 | T65: GLS8330 | Y65: Retail Energy Marketing Cons | AF65: RETAIL_ENERGY
J66: 117 Kentucky Power Company - Generation | Z66: X894 Eliminations
J67: 180 Kentucky Power Company - Transmission | R67: IS8136 | S67: IS8736 | T67: GLS8336 | Z67: AEP Retail Energy | AF67: AEP_RETAIL_ENERGY
A68: IS8010 | B68: IS8810 | C68: GLS8210 | H68: Kingsport Power Consolidated | P68: KGP_WIRES_CONSOL | AA68: X892 | AB68: AEP Retail Energy Elim
I69: S895 Kingsport Int Eliminations | R69: IS8138 | S69: IS8738 | T69: GLS8338 | AA69: AEP Retail Energy Partners Con | AF69: AEP_REP_CONS
I70: Kingsport Power Corp Consolidated | P70: KGP_WIRES_CORP | AB70: X893 | AC70: AEP REP Elim
J71: S991 Kingsport Corp Eliminations | AB71: 390 AEP Retail Energy Partners LLC
J72: 230 Kingsport Power Company - Distribution | AB72: 397 AEP Retail Energy Partners LLC
J73: 260 Kingsport Power Company - Transmission | R73: IS8150 | S73: IS8750 | T73: GLS8350 | AA73: BlueStar Energy Holdings Conso | AF73: BSE_CONS
A74: IS8023 | B74: IS8823 | C74: GLS8223 | H74: PSO Integrated Consolidated | P74: PSO_INT_CONSOL | AB74: X900 BlueStar Energy Holdings Elim
I75: S899 PSO Int Eliminations | AB75: 399 BSE Holdco, LLC
I76: PSO Corp Consolidated | P76: PSO_CORP_CONSOL | AB76: 400 BlueStar Energy Services, Inc.
J77: S968 PSO Corp Eliminations | AB77: 401 BSE Solutions LLC
J78: 114 Public Service of Oklahoma - Transmission | R78: IS8185 | S78: IS8785 | T78: GLS8385 | X78: AEP Energy Partners | AF78: AEP_ENERGY_PARTNERS
J79: 167 Public Service of Oklahoma - Distribution | Y79: X918 Elimination
J80: 198 Public Service of Oklahoma - Generation | Y80: 175 AEP Energy Partners, Inc
A81: IS8024 | B81: IS8824 | C81: GLS8224 | H81: SWEPCO Integrated Consolidated | P81: SWEPCO_INT_CONSOL | X81: AEP Generation Resources Consolidated | AF81: OHIO_GEN
I82: S960 SWEPCO Int Eliminations | Y82: X889 Ohio Gen Eliminations
I83: 137 Mutual Energy SWEPCO L. P. | Y83: 290 Conesville Coal Prep. Co.
I84: S138 History Mutual Energy SWEPCO L. P. | Y84: 412 Ohio Franklin Realty, LLC
I85: 358 Sabine Mining | Y85: AEP Generation Resources | AF85: GEN_RESOURCE
I86: ELIM_RA245 | P86: ELIM_S245 | Z86: X882 AGR Eliminations
J87: RA245 Eliminations | Z87: 404 AEP Generation Resources
I88: SWEPCO Corp Consolidated | P88: SWEPCO_CORP_CONS | Z88: Ohio Co - Generation (OHIO_G) | AF88: OHIO_G
J89: S959 SWEPCO Corp Eliminations | AA89: X922 | AB89: Eliminations
J90: 111 SWEPCO-TX-Transmission | AA90: 181 | AB90: OPCO - Generation
J91: 159 SWEPCO-Distribution | AA91: 420 | AB91: Ohio PPA
J92: 161 SWEPCO-TX-Distribution | R92: IS8164 | S92: IS8764 | T92: GLS8364 | X92: CSW Energy Consolidated | AF92: CSWEN_CONSOL
J93: 168 SWEPCO-Generation | Y93: X966 CSW Energy Eliminations
J94: 194 SWEPCO-Transmission | Y94: 171 CSW Energy, Inc.
A95: IS8056 | B95: IS8856 | C95: GLS8256 | F95: Transmission and Distribution Utilities | P95: T&D_UTILITIES | Y95: 361 AEP Properties, L.L.C.
H96: S870 Trans and Dist Ops Eliminations | Y96: RB171 CSW Energy Ohio Sep
A97: IS8049 | B97: IS8849 | C97: GLS8249 | H97: AEP TEXAS Integrated | P97: TEXAS_INT_CONSOL | Y97: 277 AEP Wind GP, LLC
I98: R101 AEP Utilities, Inc. (Used to move history to CORP Segment) | Y98: 314 AEP Desert Sky LP, LLC
I99: S871 New Elimination | Y99: 315 AEP Desert Sky GP, LLC
I100: 162 AEP Texas Central Company- Sec | Y100: 339 AEP Wind LP II, LLC
I101: 372 AEP Tx Central Transition Fund #2 | Y101: 341 AEP Desert Sky LP II, LLC
I102: 395 AEP Tx Central Transition Fund #3 | Y102: 345 AEP Wind Holding Company, LLC
I103: 371 Texas North Generation Co, LLC | Y103: AEP WIND Consolidated | AF103: AEP_WIND_HOLDING_CON
I104: TEXAS CORP | P104: TEXAS_CORP_CONSOL | Z104: X937 Wind Consolidated
J105: S872 New Elimination | Z105: Trent Wind | AF105: TRENT
J106: 101 AEP Utilities, Inc. | AA106: X965 Trent Eliminations
J107: GENERATION | P107: TEXAS_G | AA107: 431 Trent Wind Farm LLC
K108: 166 AEP Texas North Company - Gen | AA108: 275 Trent Wind Farm LP
J109: TRANSMISSION | P109: TEXAS_T | Z109: Desert Sky | AF109: DESERT_SKY_E_CONSOL
K110: S873 New Elimination | AA110: X938 Desert Sky Eliminations
K111: 169 AEP Texas Central Company - Tran | AA111: 432 Desert Sky Wind Farm LLC
K112: 192 AEP Texas North Company - Tran | AA112: 317 Desert Sky Wind Farm LP
J113: DISTRIBUTION | P113: TEXAS_D | R113: IS8174 | S113: IS8774 | T113: GLS8374 | X113: CSW Energy Services Consol | AF113: CSWESI_CONSOL
K114: S874 New Elimination | R114: IS8146 | S114: IS8746 | T114: GLS8346 | W114: AEP Resources Consolidated | AF114: AEPR_CONSOL
K115: 119 AEP Texas North Company - Dist | X115: X986 AEP Resources Eliminations
K116: 211 AEP Texas Central Company - Dist | X116: 172 AEP Resources, Inc.
A117: IS8039 | B117: IS8839 | C117: GLS8239 | H117: OPCO Integrated Consolidated | P117: OPCO_INT_CONSOL | R117: IS8180 | S117: IS8780 | T117: GLS8380 | W117: AEP Transmission Holding Co | AF117: AEP_TRANSMISSION
I118: S920 OPCO Int Eliminations | X118: X929 Eliminations
I119: 408 Ohio Phase In Recovery Funding | X119: X396 Eliminations
I120: 409 Ohio Reg Asset Funding | X120: 369 AEP Transmission Holding Company LLC
I121: OPCO Corp Consolidation | P121: OPCO_CORP_CONSOL | X121: 393 | Y121: AEP Transmission Partner LLC
J122: S921 OPCO Corp Eliminations | X122: 396 RITELine Indiana LLC
J123: Ohio Co Transmission | P123: OHIO_T | X123: 403 | Y123: Transource Energy, LLC
K124: 160 Ohio Power Company - Transmission | X124: 407 | Y124: Transource Energy Missouri
J125: Ohio Co Distribution | P125: OHIO_D | X125: 415 | Y125: Transource Energy West Virginia
K126: 250 Ohio Power Company - Distribution | X126: 417 | Y126: BOLD Transmission
X127: 423 | Y127: Transource Energy Pennsylvania
A128: IS8037 | B128: IS8837 | C128: GLS8237 | F128: AEP Transmission Holding Co | P128: AEP_TRANSMISSION | X128: 424 | Y128: Transource Energy Maryland
H129: S907 Transmission Ops Eliminations | P129: S907 | X129: AEP TransCo | AF129: AEP_TRANS_CO
H130: AEP Transmission Holding | P130: AEP_TRANS_HOLD | Y130: X928 Eliminations
I131: S929 Trans Holding Eliminations | P131: S929 | Y131: 370 | Z131: AEP Transmission Co, LLC
I132: 369 AEP Transmission Holding Company LLC | Y132: State Transco Consolidated | AF132: TRANSCO_370
I133: 393 AEP Transmission Partner LLC | Z133: X914 | AA133: State Transco Elim
I134: RITELine Indiana Consol | Z134: 380 | AA134: AEP Ohio Trans Co
J135: 396 RITELine Indiana LLC | Z135: 382 | AA135: AEP Appalachian Tran Co
J136: 417 BOLD Transmission | Z136: 383 | AA136: AEP West Virginia Trans Co
I137: TranSource Cons | P137: TRANSOURCE_CONS | Z137: 384 | AA137: AEP Kentucky Trans Co
J138: S888 TranSource Eliminations | Z138: 385 | AA138: AEP Indiana Michigan Trans Co
J139: 403 Transource Energy, LLC | Z139: 386 | AA139: AEP Oklahoma Trans Co
J140: Transource Missouri Cons | P140: MISSOURI_GAAP | Z140: 388 | AA140: AEP Southwestern Trans Co
K141: 407 Transource Missouri | R141: IS8111 | S141: IS8711 | T141: GLS8311 | W141: APCO Integrated Consolidated | AF141: APCO_INT_CONSOL
J142: Transource West Virginia | P142: TRANS_WV | X142: X998 APCo Integrated Elim
K143: 415 Transource West Virginia | X143: 125 Central Appalachian Coal Co.
J144: Transource Pennsylvania | P144: TRANS_PENN | X144: 217 Southern Appalachian Coal Co.
K145: 423 Transource Pennsylvania | X145: 225 Cedar Coal Company
J146: Transource Maryland | P146: TRANS_MARYLAND | X146: APCO Corp Consolidated | AF146: APCO_CORP_CONSOL
K147: 424 Transource Maryland | Y147: X997 APCo Corp Eliminations
A148: IS8055 | B148: IS8855 | C148: GLS8255 | I148: AEP TransCo Registrant | P148: TRANSCO | Y148: 410 Appalachian Rate Relief
J149: S928 TransCo Eliminations | Y149: 140 Appalachian Power Co - Dist
J150: 370 AEP Transmission Co, LLC | Y150: 150 Appalachian Power Co - Trans
J151: State Transco Consolidated | P151: TRANSCO_370 | Y151: 215 Appalachian Power Co - Gen
K152: S914 State TransCo Eliminations | Y152: RB215 APCO Ohio Sep
K153: 380 AEP Ohio Trans Co | R153: IS8131 | S153: IS8731 | T153: GLS8331 | W153: CSW Consolidated | AF153: CSW_CONSOLIDATED
K154: 382 AEP Appalachian Tran Co | X154: X971 CSW Parent Consl Elim
K155: 383 AEP West Virginia Trans Co | X155: X881 Pr Year Presentation Adjustments
K156: 384 AEP Kentucky Trans Co | X156: 101 AEP Utilities, Inc.
K157: 385 AEP Indiana Michigan Trans Co | X157: RB101 AEP Utilities Ohio Sep
K158: 386 AEP Oklahoma Trans Co | R158: IS8132 | S158: IS8732 | T158: GLS8332 | X158: AEP TX Central Int Cons | AF158: AEPTC_INT_CONSOL
K159: 388 AEP Southwestern Trans Co | Y159: X970 Central Pwr & Light Int Consl
H160: AEP Transmission JV (50/50 of BU101 ETT Ownership) | P160: AEP_TRANS_JV | Y160: 162 AEP Texas Central Company- Sec
I161: S908 Trans JV (50/50 ETT Ownership of BU101) | Y161: 372 AEP Texas Central Transition Fund #2
A162: IS8061 | B162: IS8861 | C162: GLS8261 | F162: Generation and Marketing | P162: GEN_&_MKT | Y162: 395 AEP Texas Central Transition Fund #3
H163: S986 Gen&Mkt Eliminations | Y163: AEP TX Central Corp Cons | AF163: AEPTC_CORP_CONSOL
H164: 429 | I164: Amazon | Z164: X969 Central Pwr & Light Corp Consl
H165: 375 AEG - Lawrenceburg | Z165: 169 AEP Texas Central Company-Tran
A166: IS8043 | B166: IS8843 | C166: GLS8243 | H166: AEP Energy Supply Consolidation | P166: AEP_ENERGY_SUPPLY | Z166: 211 AEP Texas Central Company-Dist
I167: S985 Eliminations | R167: IS8135 | S167: IS8735 | T167: GLS8335 | X167: AEP TX North Int Cons | AF167: AEPTN_INT_CONSOL
I168: 102 AEP Energy Supply | Y168: X925 AEP Texas North Int Consol Elim
I169: Onsite Partners | P169: ONSITE_PARTNERS | Y169: 371 Texas North Generation Co, LLC
J170: S901 Onsite Eliminations | Y170: AEP TX North Corp Cons | AF170: AEPTN_CORP_CONSOL
D171: Moved 12/2015 | J171: 419 Onsite Partnership | Z171: X967 West Texas Utilities Corp Elim
J172: 425 Solar, LLC | Z172: 119 AEP Texas North Company - Dist
I173: AEP Renewables | P173: AEP_RENEW | Z173: 166 AEP Texas North Company - Gen
J174: S902 AEP Renew elim | Z174: 192 AEP Texas North Company - Tran
J175: 422 AEP Renewables | R175: IS8114 | S175: IS8714 | T175: GLS8314 | W175: I&M Integrated Consolidated | AF175: I&M_INT_CONSOL
J176: 427 Jacumba Solar | X176: X994 Indiana Mich Integrated Elim
A177: IS8027 | B177: IS8827 | C177: GLS8227 | I177: AEP C&I Company Consol | P177: AEP_C&I_CO_CONSOL | X177: 121 Price River Coal Company
J178: S954 C&I Elminations | X178: 202 Blackhawk Coal Company
J179: 203 AEP C&I Company LLC | X179: 394 DCC Fuel 4, LLC
J180: Rep Holdco Inc. Consolidated | P180: REPHLD_CONSOLIDATED | X180: 411 DCC Fuel 6, LLC
A181: IS8030 | B181: IS8830 | C181: GLS8230 | J181: Retail Energy Marketing Cons | P181: RETAIL_ENERGY | X181: 414 DCC Fuel 7, LLC
K182: S894 Retail Mrkt Eliminations | X182: 416 DCC Fuel 8, LLC
A183: IS8036 | B183: IS8836 | C183: GLS8236 | K183: AEP Retail Energy Consol | P183: AEP_RETAIL_ENERGY | X183: 421 DCC Fuel 9, LLC
L184: S892 Retail Energy Eliminations | X184: 426 DCC Fuel 10, LLC
A185: IS8038 | B185: IS8838 | C185: GLS8238 | L185: AEP Retail Energy Partners | P185: AEP_REP_CONS | X185: 430 DCC Fuel 11, LLC
M186: S893 Retail Energy Eliminations | X186: I&M Corp Consolidated | AF186: I&M_CORP_CONSOL
M187: 397 AEP Retail Energy Partners LLC | Y187: X993 Indiana Mich Corp Elim
A188: IS8050 | B188: IS8850 | C188: GLS8250 | L188: BlueStar Energy Holdings Consolidated | P188: BSE_CONS | Y188: 280 Ind Mich River Transp Lakin
M189: S900 BlueStar Eliminations | Y189: I&M w/o Lakin | AF189: I&M_WO_LAKIN
M190: 399 BSE Holdco, LLC | Z190: 120 Indiana Michigan Pwr Co - Tran
M191: 400 AEP Energy, Inc | Z191: 132 Indiana Michigan Pwr Co - Gen
M192: 401 BSE Solutions LLC | Z192: 170 Indiana Michigan Pwr Co - Dist
A193: IS8084 | B193: IS8884 | C193: GLS8284 | I193: AEP Generation Resources Consol (AGR) | P193: OHIO_GEN | Z193: 190 Indiana Michigan Pwr Co - Nuc
J194: S889 Ohio Gen Eliminations | P194: S889 | R194: IS8116 | S194: IS8716 | T194: GLS8316 | W194: Kentucky Power Integrat Consol | AF194: KYP_INT_CONSOL
J195: 290 Conesville Prep Plant | X195: X897 Eliminations
J196: 412 Ohio Franklin Realty, LLC | X196: Kentucky Power Corp Consol | AF196: KYP_CORP_CONSOL
A197: IS8045 | B197: IS8845 | C197: GLS8245 | J197: AEP Generation Resources | P197: Gen_Resource | Y197: X992 Kentucky Power Integrated Elim
K198: S882 GenRes Eliminations | Y198: 110 Kentucky Power Co - Dist
K199: 404 AEP Generation Resources | Y199: 117 Kentucky Power Co - Gene
K200: Ohio Co - Generation | P200: OHIO_G | Y200: RB117 KYP Ohio Sep
L201: S922 OPCO Gen Eliminations | Y201: 180 Kentucky Power Co - Trans
... 97 more rows

Sheet 2018
A1: Kentucky Power Corp Consol
A2: 2018 Trial Balances
A4: Account Number | B4: Account Description | C4: Jan 2018 | D4: Feb 2018 | E4: Mar 2018 | F4: Apr 2018 | G4: May 2018 | H4: Jun 2018 | I4: Jul 2018 | J4: Aug 2018 | K4: Sep 2018 | L4: Oct 2018 | M4: Nov 2018 | N4: Dec 2018
A6: 1010001 | B6: Plant in Service | C6: 2607525750 | D6: 2611154943 | E6: 2616043722 | F6: 2625045740 | G6: 2626877236 | H6: 2636082776 | I6: 2641056463 | J6: 2644597845 | K6: 2650187721 | L6: 2658367290 | M6: 2662187979 | N6: 2663723224
A7: 1011001 | B7: Capital Leases | C7: 5712841.5 | D7: 5684534.88 | E7: 5624004.17 | F7: 5131575.77 | G7: 5131085.01 | H7: 5060367.72 | I7: 4945137.05 | J7: 4952792.06 | K7: 4795790.24 | L7: 4800634.23 | M7: 4837923.18 | N7: 4773689.19
A8: 1011006 | B8: Prov-Leased Assets | C8: -3015823.14 | D8: -3056113.55 | E8: -3075579.63 | F8: -2635889.37 | G8: -2675533.87 | H8: -2654261.12 | I8: -2577063.18 | J8: -2634563.93 | K8: -2524175.72 | L8: -2549374.51 | M8: -2589589.09 | N8: -2410384.22
A9: 1011012 | B9: Accrued Capital Leases | C9: 6315.39 | D9: 2608.92 | E9: 4242.04 | F9: 0 | G9: 22379.81 | H9: 33168.57 | I9: 20645.24 | J9: 20350.31 | K9: 0 | L9: 0 | M9: 14932.71 | N9: 168007.17
A10: 1050001 | B10: Held For Fut Use | C10: 627603.73 | D10: 627603.73 | E10: 627603.73 | F10: 627603.73 | G10: 627603.73 | H10: 627603.73 | I10: 556145.38 | J10: 556145.38 | K10: 556145.38 | L10: 556145.38 | M10: 556145.38 | N10: 556145.38
A11: 1060001 | B11: Const Not Classifd | C11: 46335832.93 | D11: 44124207.09 | E11: 43621349.52 | F11: 37755581.95 | G11: 39854518.13 | H11: 40996505.17 | I11: 40855539.07 | J11: 42368361.31 | K11: 44660135.53 | L11: 52719294.47 | M11: 59250110.34 | N11: 65401323.74
A12: 1070001 | B12: CWIP - Project | C12: 53634852.27 | D12: 59933461.16 | E12: 65533970.06 | F12: 74274002.2 | G12: 81736626.52 | H12: 80196400.59 | I12: 85189205.2 | J12: 89650883.57 | K12: 90883232.11 | L12: 78582636.61 | M12: 78094945.64 | N12: 84747788.56
A13: 1080001 | B13: A/P for Deprec of Plt | C13: -912351941.9 | D13: -916449985.1 | E13: -923177309.9 | F13: -926711087 | G13: -928513821.3 | H13: -932103176.3 | I13: -935451616.8 | J13: -939456879.8 | K13: -944330358.7 | L13: -944151290.9 | M13: -947927129.8 | N13: -948651576
A14: 1080005 | B14: RWIP - Project Detail | C14: 3623618.009 | D14: 4136434.989 | E14: 5732860.249 | F14: 6407619.829 | G14: 6515036.559 | H14: 6674101.979 | I14: 6561454.279 | J14: 7209459.249 | K14: 7354980.829 | L14: 6373987.799 | M14: 6564827.559 | N14: 7121104.209
A15: 1080011 | B15: Cost of Removal Reserve | C15: -3030739.15 | D15: -4689204.5 | E15: -3503481.51 | F15: -4731666.81 | G15: -6284005.7 | H15: -6574619.04 | I15: -7761360.79 | J15: -9339788.92 | K15: -9910552.4 | L15: -9106004.04 | M15: -10465293.61 | N15: -13093484.03
A16: 1080013 | B16: ARO Removal Deprec - Accretion | C16: 2590319.96 | D16: 2612782.85 | E16: 2635096.22 | F16: 2656990.5 | G16: 2678660.39 | H16: 2700282.22 | I16: 2721889.19 | J16: 2743464.23 | K16: 2764952.87 | L16: 2786369.06 | M16: 2807606.45 | N16: 2828881.13
A17: 1110001 | B17: A/P for Amort of Plt | C17: -13342736.16 | D17: -13793956.05 | E17: -14087238.33 | F17: -14552532.65 | G17: -15024949.19 | H17: -15373030.41 | I17: -15863032.41 | J17: -16378789.77 | K17: -16713321.36 | L17: -17244460.31 | M17: -17788254.45 | N17: -17240171.36
A18: 1210001 | B18: Nonutility Property - Owned | C18: 6670697.79 | D18: 6670697.79 | E18: 6670697.79 | F18: 6670697.79 | G18: 6670697.79 | H18: 6670697.79 | I18: 6670697.79 | J18: 6670697.79 | K18: 6670697.79 | L18: 6670697.79 | M18: 6670697.79 | N18: 6670697.79
A19: 1220001 | B19: Depr&Amrt of Nonutl Prop-Ownd | C19: -242190.44 | D19: -242746.25 | E19: -243302.06 | F19: -243857.87 | G19: -244413.68 | H19: -244969.49 | I19: -245525.3 | J19: -246081.11 | K19: -246636.92 | L19: -247192.73 | M19: -247748.54 | N19: -248304.35
A20: 1220003 | B20: Depr&Amrt of Nonutl Prop-WIP | C20: 0 | D20: 0 | E20: 54.71 | F20: 1499.44 | G20: 1707.88 | H20: 1775.2 | I20: 1775.2 | J20: 4150.03 | K20: 6374.11 | L20: 7107.71 | M20: 8102.55 | N20: 8641.87
A21: 1240002 | B21: Oth Investments-Nonassociated | C21: 806 | D21: 806 | E21: 806 | F21: 806 | G21: 806 | H21: 806 | I21: 806 | J21: 806 | K21: 806 | L21: 806 | M21: 806 | N21: 806
A22: 1240005 | B22: Spec Allowance Inv NOx | C22: 8299.4 | D22: 8299.4 | E22: 8299.4 | F22: 8299.4 | G22: 8299.4 | H22: 8299.4 | I22: 8299.4 | J22: 8299.4 | K22: 8299.4 | L22: 8299.4 | M22: 8299.4 | N22: 8299.4
A23: 1240007 | B23: Deferred Compensation Benefits | C23: 25954.48 | D23: 25954.48 | E23: 25954.48 | F23: 25954.48 | G23: 25954.48 | H23: 25954.48 | I23: 25954.48 | J23: 25954.48 | K23: 25954.48 | L23: 25954.48 | M23: 25954.48 | N23: 27930.06
A24: 1240027 | B24: Other Property - RWIP | C24: 0 | D24: 0 | E24: 129.11 | F24: 1218.46 | G24: 1863.8 | H24: 2661.25 | I24: 3465.79 | J24: -35391.68 | K24: -35391.68 | L24: -35391.68 | M24: -35391.68 | N24: -36499.9
A25: 1240028 | B25: Other Property - RETIRE | C25: -18.87 | D25: -18.87 | E25: -18.87 | F25: -18.87 | G25: -18.87 | H25: -18.87 | I25: -18.87 | J25: -18.87 | K25: -18.87 | L25: -18.87 | M25: -18.87 | N25: -18.87
A26: 1240029 | B26: Other Property - CPR | C26: 1826832.63 | D26: 1826832.63 | E26: 1826832.63 | F26: 1826832.63 | G26: 1826832.63 | H26: 1826832.63 | I26: 1826832.63 | J26: 1826832.63 | K26: 1826832.63 | L26: 1826832.63 | M26: 1826832.63 | N26: 1826832.63
A27: 1240092 | B27: Fbr Opt Lns-In Kind Sv-Invest | C27: 124382 | D27: 123482 | E27: 122582 | F27: 121682 | G27: 120782 | H27: 119882 | I27: 118982 | J27: 118082 | K27: 117182 | L27: 116282 | M27: 115382 | N27: 114482
A28: 1290000 | B28: Pension Net Funded Position | C28: 3558711.7 | D28: 3558711.7 | E28: 4313091.7 | F28: 4313091.7 | G28: 4313091.7 | H28: 5067471.7 | I28: 5067471.7 | J28: 5067471.7 | K28: 5821851.7 | L28: 5821851.7 | M28: 5821851.7 | N28: 323878.61
A29: 1290001 | B29: Non-UMWA PRW Funded Position | C29: 18161635.61 | D29: 18161635.61 | E29: 17646001.86 | F29: 17646001.86 | G29: 17646001.86 | H29: 17130368.11 | I29: 17130368.11 | J29: 17130368.11 | K29: 16614734.36 | L29: 16614734.36 | M29: 16614734.36 | N29: 15495013.63
A30: 1290002 | B30: SFAS 106 - Non-UMWA PRW | C30: 326496.35 | D30: 652992.7 | E30: 987907.25 | F30: 1301866.44 | G30: 1631168.85 | H30: 1960471.26 | I30: 2289773.67 | J30: 2619076.08 | K30: 2948378.49 | L30: 3277680.9 | M30: 3606983.31 | N30: 0
A31: 1290003 | B31: SFAS 87 - Pension | C31: -139744.49 | D31: -279488.98 | E31: -489944.25 | F31: -653259.01 | G31: -816573.77 | H31: -979888.53 | I31: -1143203.29 | J31: -1306518.05 | K31: -1469832.81 | L31: -1633147.57 | M31: -1796462.33 | N31: 0
A32: 1310000 | B32: Cash | C32: 659602.76 | D32: 1104187.68 | E32: 324163.72 | F32: 1020642.17 | G32: 678595.68 | H32: 856237.02 | I32: 696440.48 | J32: 846472.85 | K32: 698004.24 | L32: 547324.49 | M32: 688580.93 | N32: 1168117.67
A33: 1340018 | B33: Spec Deposits - Elect Trading | C33: 4905566.512 | D33: 5690316.952 | E33: 5249268.762 | F33: 1521737.412 | G33: 1619412.712 | H33: 1462929.442 | I33: 1463077.612 | J33: 1698841.632 | K33: 1463656.262 | L33: 237359.562 | M33: 330695.892 | N33: 236979.452
A34: 1340048 | B34: Spec Deposits-Trading Contra | C34: -459742 | D34: -78234 | E34: -8841 | F34: -71322 | G34: 158228 | H34: 140633 | I34: 89864 | J34: 7994 | K34: -66966 | L34: -147501 | M34: 8583 | N34: 109117
A35: 1340050 | B35: Spec Deposit Mizuho Securities | C35: 0 | D35: 731945.34 | E35: 384057.42 | F35: 519608.07 | G35: 511954.13 | H35: 349759.76 | I35: 483255.79 | J35: 451788.78 | K35: 588859.53 | L35: 385133.79 | M35: 99474.74 | N35: 151097.93
A36: 1340051 | B36: Spec Depost RBC | C36: 1929091.2 | D36: 351820.58 | E36: 332304.16 | F36: 266394.73 | G36: 366657.27 | H36: 57852.86 | I36: 446621.2 | J36: 554333.2 | K36: 582700.93 | L36: 794935.02 | M36: 243106.23 | N36: 287695.31
A37: 1340053 | B37: Deposits - Flexible Spending | C37: 34673.03 | D37: 34673.03 | E37: 34673.03 | F37: 34673.03 | G37: 34673.03 | H37: 34673.03 | I37: 34673.03 | J37: 34673.03 | K37: 34673.03 | L37: 34673.03 | M37: 17303.87 | N37: 34901.2
A38: 1340055 | B38: Spec Dep Affil - Elect Trading | C38: 0 | D38: 980700 | E38: 0 | F38: 0 | G38: 0 | H38: 0 | I38: 0 | J38: 0 | K38: 0 | L38: 282900 | M38: 0 | N38: 0
A39: 1340057 | B39: Wells Fargo Securities, LLC | C39: 0 | D39: 0 | E39: 0 | F39: 0 | G39: 0 | H39: 0 | I39: 0 | J39: 0 | K39: 0 | L39: 0 | M39: 24521.65 | N39: 96944.74
A40: 1410002 | B40: P/R Ded - Misc Loan Repayments | C40: 0 | D40: 0 | E40: 0 | F40: 0 | G40: 0 | H40: 0 | I40: 0 | J40: 0 | K40: 0 | L40: 0 | M40: 0 | N40: 0
A41: 1420001 | B41: Customer A/R - Electric | C41: 49492749.38 | D41: 49939337.77 | E41: 44734835.46 | F41: 44272816.49 | G41: 37181161.2 | H41: 34774149.71 | I41: 38994551.4 | J41: 34255112.35 | K41: 35890887.96 | L41: 30336821.58 | M41: 28847334.5 | N41: 36667411.91
A42: 1420014 | B42: Customer A/R-System Sales | C42: 738762.36 | D42: 551665.22 | E42: 518833.22 | F42: 459351.91 | G42: 600844.24 | H42: 568868.8 | I42: 658397.32 | J42: 599656.07 | K42: 538485.78 | L42: 505979.97 | M42: 548659.6 | N42: 602600.06
A43: 1420019 | B43: Transmission Sales Receivable | C43: 12870 | D43: 4432.5 | E43: 9423 | F43: 8953.5 | G43: 8206.5 | H43: 4471.5 | I43: 9418.5 | J43: 4849.5 | K43: 4278 | L43: 4080 | M43: 4960.5 | N43: 5502
A44: 1420022 | B44: Cust A/R - Factored | C44: -46570576.27 | D44: -43692968.48 | E44: -37545166.03 | F44: -38575671.96 | G44: -37602046.33 | H44: -34516435.39 | I44: -35449269.18 | J44: -32871969.29 | K44: -31272095.34 | L44: -27791981.73 | M44: -26915918.6 | N44: -30863480.39
A45: 1420023 | B45: Cust A/R-System Sales - MLR | C45: 897859.545 | D45: 361964.735 | E45: 309756.345 | F45: 264656.565 | G45: 558523.475 | H45: 638477.645 | I45: 1252901.045 | J45: 1183059.975 | K45: 752687.775 | L45: 478114.715 | M45: 419325.415 | N45: 631352.005
A46: 1420024 | B46: Cust A/R-Options & Swaps - MLR | C46: 0 | D46: 5843.06 | E46: 0 | F46: 0 | G46: 0 | H46: 0 | I46: 0 | J46: 0 | K46: 0 | L46: 0 | M46: 0 | N46: 0
A47: 1420027 | B47: Low Inc Energy Asst Pr (LIEAP) | C47: 47781 | D47: 6125 | E47: 5495 | F47: 5495 | G47: 0 | H47: 0 | I47: 0 | J47: 0 | K47: 0 | L47: 0 | M47: 413641 | N47: 357181
A48: 1420028 | B48: Emergency LIEAP | C48: 859827.43 | D48: 259305.82 | E48: 50203.3 | F48: 44323.23 | G48: 0 | H48: 0 | I48: 0 | J48: 0 | K48: 0 | L48: 0 | M48: 0 | N48: 0
A49: 1420042 | B49: Cust A/R - Special Contracts | C49: 0 | D49: 0 | E49: 5059.75 | F49: 20349.93 | G49: 482.37 | H49: 2584.48 | I49: 7033.9 | J49: 0 | K49: -7033.9 | L49: -7420.15 | M49: -7420.15 | N49: 8671.8
A50: 1420044 | B50: Customer A/R - Estimated | C50: 347667 | D50: 89961 | E50: 59915 | F50: 116843 | G50: 6843283 | H50: 7141819 | I50: 1246331 | J50: 415000 | K50: 349903 | L50: 358041 | M50: 1017133 | N50: 613973
A51: 1420048 | B51: Emission Allowance Trading | C51: 0 | D51: 0 | E51: 0 | F51: 0 | G51: 0 | H51: 45.65 | I51: 0 | J51: 0 | K51: 0 | L51: 43000 | M51: 43000 | N51: 43000
A52: 1420050 | B52: PJM AR Accrual | C52: -0.001 | D52: 0 | E52: 0 | F52: 0 | G52: 211009.32 | H52: 0 | I52: 0 | J52: 0 | K52: 0 | L52: 0.01 | M52: 0 | N52: 0
A53: 1420054 | B53: Accrued Power Brokers | C53: 570634.84 | D53: 664064.43 | E53: 8908.39 | F53: 2484.76 | G53: 54181.34 | H53: 19274.84 | I53: 6095.71 | J53: 7882.24 | K53: 1327.69 | L53: 608.16 | M53: 8136.52 | N53: 101904.94
A54: 1420058 | B54: Cust A/R-Contra-Home Warranty | C54: -77964.41 | D54: -78895.3 | E54: -74974.84 | F54: -75245.86 | G54: -80764.21 | H54: -80360.27 | I54: -75654.65 | J54: -80450.38 | K54: -79310.48 | L54: -85283.83 | M54: -82287.16 | N54: -74846.38
A55: 1420059 | B55: AR PS Bill-Cust Home Warranty | C55: 14033.56 | D55: 14201.11 | E55: 13495.43 | F55: 13544.21 | G55: 14537.51 | H55: 14464.79 | I55: 13617.79 | J55: 14481.02 | K55: 14275.84 | L55: 15351.04 | M55: 14811.63 | N55: 13472.29
A56: 1420060 | B56: PJM Trans Enhancement Refund | C56: 0 | D56: 0 | E56: 0 | F56: 0 | G56: 0 | H56: 9610448.97 | I56: 9610448.97 | J56: 8267434.93 | K56: 7595927.91 | L56: 6924420.89 | M56: 6252913.87 | N56: 5581406.85
A57: 1420102 | B57: AR Peoplesoft Billing - Cust | C57: 1268792.69 | D57: 1522728.28 | E57: 951165.92 | F57: 640823.86 | G57: 527334.11 | H57: 1231111.26 | I57: 3902151.71 | J57: 5295702.94 | K57: 5713562.52 | L57: 994755.11 | M57: 614808.38 | N57: 3337690.33
A58: 1420103 | B58: AR Long-Term-Customer | C58: 0 | D58: 0 | E58: 0 | F58: 0 | G58: 0 | H58: 4642419.25 | I58: 4699176.39 | J58: 4445093.61 | K58: 4318052.22 | L58: 4191010.83 | M58: 4063969.44 | N58: 3936928.05
A59: 1430002 | B59: Allowances | C59: 45.71 | D59: 45.71 | E59: 103.96 | F59: 45.71 | G59: 57.25 | H59: 144.54 | I59: 57.25 | J59: 57.25 | K59: 57.25 | L59: 57.25 | M59: 57.25 | N59: 144.54
A60: 1430022 | B60: 2001 Employee Biweekly Pay Cnv | C60: 59295.51 | D60: 56741.49 | E60: 55381.92 | F60: 52035.62 | G60: 50277.9 | H60: 50277.9 | I60: 48895.18 | J60: 47593.2 | K60: 47593.2 | L60: 46068.32 | M60: 46068.32 | N60: 46068.32
A61: 1430081 | B61: Damage Recovery - Third Party | C61: 24913 | D61: 24913 | E61: 46258 | F61: 42904.12 | G61: 11088 | H61: 18128 | I61: 3054 | J61: 400 | K61: 3741 | L61: 11800 | M61: 25186 | N61: 20511
A62: 1430083 | B62: Damage Recovery Offset Demand | C62: -37349.002 | D62: -28411.002 | E62: -46258 | F62: -55369.122 | G62: -15973.122 | H62: -18128 | I62: -15537.002 | J62: -4498.002 | K62: -3741 | L62: -12569.002 | M62: -25955.002 | N62: -20511
A63: 1430101 | B63: Other Accounts Rec - Misc | C63: 0 | D63: 0 | E63: 0 | F63: 0 | G63: 0 | H63: 0 | I63: 0 | J63: 167325 | K63: 167325 | L63: 0 | M63: 176000 | N63: 0
A64: 1430102 | B64: AR Peoplesoft Billing - Misc | C64: 884.15 | D64: 5345.91 | E64: 13212.2 | F64: 8267.01 | G64: 43028.19 | H64: 5874.51 | I64: 8991.34 | J64: 11135.86 | K64: 63166.15 | L64: 14652.66 | M64: 7218.15 | N64: 10750.78
A65: 1440002 | B65: Uncoll Accts-Other Receivables | C65: -37696.83 | D65: -37444.37 | E65: -37444.37 | F65: -37444.37 | G65: -74717 | H65: -74717 | I65: -68778.88 | J65: -44067.14 | K65: -203335.26 | L65: -197415.78 | M65: -85486.98 | N65: -85486.98
A66: 1450000 | B66: Corp Borrow Prg (NR-Assoc) | C66: 2336379.42 | D66: 0 | E66: 0 | F66: 0 | G66: 0 | H66: 0 | I66: 0 | J66: 0 | K66: 0 | L66: 0 | M66: 0 | N66: 0
A67: 1460001 | B67: A/R Assoc Co - InterUnit G/L | C67: 24399091.7 | D67: 21738143.02 | E67: 23238735.11 | F67: 15899650.26 | G67: 20362631.69 | H67: 18639899.5 | I67: 20129161.57 | J67: 19385982.16 | K67: 17978935.58 | L67: 23777466.88 | M67: 21458106.79 | N67: 26460046.74
A68: 1460006 | B68: A/R Assoc Co - Intercompany | C68: 34194.62 | D68: 67303.78 | E68: 149364.35 | F68: 173899.35 | G68: 102031.28 | H68: 89953.68 | I68: 151741.67 | J68: 214109.06 | K68: 108527.63 | L68: 103080.41 | M68: 127314.21 | N68: 120821.49
A69: 1460009 | B69: A/R Assoc Co - InterUnit A/P | C69: 3597.64 | D69: 428.76 | E69: 0.02 | F69: 5358.43 | G69: 34.86 | H69: 8.24 | I69: 0.13 | J69: 15695.8 | K69: 199.79 | L69: 2289.9 | M69: 79582.36 | N69: 1.6
A70: 1460011 | B70: A/R Assoc Co - Multi Pmts | C70: 1282526.82 | D70: 1393749.54 | E70: 0 | F70: 1513340.76 | G70: 494561.93 | H70: 636001.03 | I70: 856754.53 | J70: 469091.78 | K70: 1169955.75 | L70: 358083.1 | M70: 1152849.93 | N70: 1473145.9
A71: 1460025 | B71: Fleet - M4 - A/R | C71: 97541.02 | D71: 90950.54 | E71: 0 | F71: 139853.11 | G71: 112688.56 | H71: 77089.08 | I71: 146178.66 | J71: 139682.25 | K71: 114361.8 | L71: 90009.59 | M71: 102959 | N71: 100515.76
A72: 1510001 | B72: Fuel Stock - Coal | C72: 14078197.27 | D72: 13051910.73 | E72: 17260054.15 | F72: 20919363.09 | G72: 19820149.97 | H72: 18889836.8 | I72: 15130040.18 | J72: 10031941.13 | K72: 7601008.5 | L72: 5973892.97 | M72: 5763503.63 | N72: 8382039.41
A73: 1510002 | B73: Fuel Stock - Oil | C73: 1014745.41 | D73: 1053114.79 | E73: 1155470.42 | F73: 795734.41 | G73: 836357.06 | H73: 829580.78 | I73: 738429.06 | J73: 912129.94 | K73: 690112.32 | L73: 1028548.01 | M73: 933167.51 | N73: 907361.3
A74: 1510003 | B74: Fuel Stock - Gas | C74: 344616.06 | D74: 321710.39 | E74: 321710.39 | F74: 321710.39 | G74: 321710.39 | H74: 0 | I74: 0 | J74: 0 | K74: 0 | L74: 34851.93 | M74: -20062.7 | N74: 134470.44
A75: 1510020 | B75: Fuel Stock Coal - Intransit | C75: 1128890.34 | D75: 2625047.99 | E75: 1353871.5 | F75: 552262.23 | G75: 470122.32 | H75: 1250824.31 | I75: 651089.31 | J75: 1340455.2 | K75: 571200.78 | L75: 473240.65 | M75: 813779.1 | N75: 803506.18
A76: 1520000 | B76: Fuel Stock Exp Undistributed | C76: 487638.914 | D76: 528486.394 | E76: 805078.764 | F76: 1026612.214 | G76: 909610.464 | H76: 884764.364 | I76: 711156.224 | J76: 544200.134 | K76: 471405.954 | L76: 359831.994 | M76: 343529.834 | N76: 393217.494
A77: 1540001 | B77: M&S - Regular | C77: 14243140.96 | D77: 14328544.8 | E77: 14227190.02 | F77: 13947781.01 | G77: 14075643.23 | H77: 13964373.63 | I77: 14105046.67 | J77: 14046673.29 | K77: 13896996.56 | L77: 14109187.93 | M77: 13985448.97 | N77: 14020387.94
A78: 1540004 | B78: M&S - Exempt Material | C78: 84279.287 | D78: 88267.747 | E78: 85341.467 | F78: 86708.087 | G78: 93695.937 | H78: 93348.597 | I78: 90479.437 | J78: 84561.507 | K78: 94349.347 | L78: 96056.407 | M78: 96773.647 | N78: 96882.427
A79: 1540006 | B79: M&S - Lime and Limestone | C79: 1272782.86 | D79: 1093811.89 | E79: 1093811.89 | F79: 1072903.01 | G79: 1186224.02 | H79: 1063550.38 | I79: 975987.58 | J79: 967947.58 | K79: 1031222.7 | L79: 1233755.51 | M79: 1340499.09 | N79: 2102374.09
A80: 1540012 | B80: Materials & Supplies - Urea | C80: -45183.23 | D80: 83934.95 | E80: 97277.37 | F80: 97277.37 | G80: -34196.25 | H80: 103401.58 | I80: 175008.55 | J80: 114896.53 | K80: 227792.86 | L80: 300199.64 | M80: 340263.32 | N80: 259330.77
A81: 1540013 | B81: Transportation Inventory | C81: 204995.72 | D81: 204995.72 | E81: 204995.72 | F81: 204995.72 | G81: 204995.72 | H81: 204995.72 | I81: 204995.72 | J81: 204995.72 | K81: 204995.72 | L81: 204995.72 | M81: 204995.72 | N81: 204995.72
A82: 1540022 | B82: M&S-Lime & Limestone Intransit | C82: 0 | D82: 0 | E82: 0 | F82: 0 | G82: 0 | H82: 117838.38 | I82: 220149.73 | J82: 156861.6 | K82: 249876.8 | L82: 74496.38 | M82: 56853.85 | N82: 0
A83: 1540023 | B83: M&S Inv - Urea In-Transit | C83: 495955.53 | D83: 337696.11 | E83: 512024.63 | F83: 512024.63 | G83: 512024.63 | H83: 342179.63 | I83: 174328.52 | J83: 375940.31 | K83: 201611.79 | L83: 0 | M83: 209849.49 | N83: 209849.49
A84: 1581000 | B84: SO2 Allowance Inventory | C84: 0 | D84: 0 | E84: 8738746.43 | F84: 0 | G84: 0 | H84: 8642458.21 | I84: 0 | J84: 0 | K84: 8571977.81 | L84: 0 | M84: 0 | N84: 8555111.6
A85: 1581003 | B85: SO2 Allowance Inventory - Curr | C85: 9061992.25 | D85: 9056730.63 | E85: 298425.32 | F85: 9027420.82 | G85: 9018354.17 | H85: 329821.41 | I85: 8927516.59 | J85: 8907843.66 | K85: 312885.59 | L85: 8862966.57 | M85: 8852987.55 | N85: 286699.45
A86: 1581009 | B86: CSAPR Current SO2 Inv | C86: 29023.56 | D86: 28986.31 | E86: 28794.6 | F86: 28699.03 | G86: 28610.16 | H86: 28158.56 | I86: 27719.82 | J86: 27526.99 | K86: 27301.75 | L86: 27087.13 | M86: 26989.31 | N86: 26879.76
A87: 1630004 | B87: Strs Exp-T&D Satellite Storerm | C87: 0 | D87: 0 | E87: 0 | F87: 0 | G87: 0 | H87: 0 | I87: 0 | J87: 0 | K87: 0 | L87: 0 | M87: 0 | N87: 0
A88: 1630006 | B88: Stores Exp - Amos Plant | C88: 0 | D88: 0 | E88: 0 | F88: 0 | G88: 0 | H88: 0 | I88: 0 | J88: 0 | K88: 0 | L88: 0 | M88: 0 | N88: 0
A89: 1630019 | B89: Stores Exp - Big Sandy Plant | C89: 0 | D89: 0 | E89: 0 | F89: 0 | G89: -0.001 | H89: -0.001 | I89: -0.001 | J89: -0.001 | K89: -0.001 | L89: -0.001 | M89: 0 | N89: 0
A90: 1630023 | B90: Stores Exp - Mitchell Plant | C90: 0 | D90: 0 | E90: 0 | F90: 0 | G90: -0.001 | H90: -0.003 | I90: -0.003 | J90: -0.003 | K90: -0.003 | L90: -0.003 | M90: 0 | N90: 0
A91: 1650001 | B91: Prepaid Insurance | C91: 413093.31 | D91: 335324.47 | E91: 257555.63 | F91: 179786.78 | G91: 227670.8 | H91: 209158.65 | I91: 655217.44 | J91: 582018.24 | K91: 508819.13 | L91: 510122.43 | M91: 441014.21 | N91: 407335.48
A92: 165000216 | B92: Prepaid Taxes | C92: 0 | D92: 0 | E92: 0 | F92: 0 | G92: 0 | H92: 0 | I92: 0 | J92: 0 | K92: 0 | L92: 0 | M92: 0 | N92: 0
A93: 165000217 | B93: Prepaid Taxes | C93: 502958.08 | D93: 402366.48 | E93: 301774.88 | F93: 201183.28 | G93: 100591.68 | H93: 0 | I93: 0 | J93: 0 | K93: 0 | L93: 0 | M93: 0 | N93: 0
A94: 165000218 | B94: Prepaid Taxes | C94: 0 | D94: 0 | E94: 0 | F94: 0 | G94: 0 | H94: 1175178.5 | I94: 1077246.95 | J94: 979315.4 | K94: 881383.85 | L94: 783452.3 | M94: 685520.75 | N94: 587589.2
A95: 1650005 | B95: Prepaid Employee Benefits | C95: 10767.63 | D95: 10603.04 | E95: 0 | F95: 0 | G95: 0 | H95: 0 | I95: 0 | J95: 0 | K95: 0 | L95: 0 | M95: 0 | N95: 0
A96: 1650006 | B96: Other Prepayments | C96: 666356.53 | D96: 617334.03 | E96: 98160.83 | F96: 87037.29 | G96: 75856.1 | H96: 65019.52 | I96: 58894.8 | J96: 43346.36 | K96: 32509.78 | L96: 21673.2 | M96: -161303.38 | N96: 172140
A97: 1650009 | B97: Prepaid Carry Cost-Factored AR | C97: 69612.65 | D97: 47682.88 | E97: 42090.97 | F97: 59547.09 | G97: 49391.92 | H97: 50234.89 | I97: 58209.58 | J97: 61367.57 | K97: 53041.31 | L97: 69353.35 | M97: 45161.78 | N97: 40573.69
A98: 1650010 | B98: Prepaid Pension Benefits | C98: 48561346.21 | D98: 48421601.72 | E98: 48211146.45 | F98: 48047831.69 | G98: 47884516.93 | H98: 47721202.17 | I98: 47557887.41 | J98: 47394572.65 | K98: 47231257.89 | L98: 47067943.13 | M98: 46904628.37 | N98: 46741313.61
A99: 165001116 | B99: Prepaid Sales Taxes | C99: 0 | D99: 0 | E99: 0 | F99: 0 | G99: 0 | H99: 0 | I99: 0 | J99: 0 | K99: 0 | L99: 0 | M99: 0 | N99: 0
A100: 165001117 | B100: Prepaid Sales Taxes | C100: 0 | D100: 0 | E100: 0 | F100: 0 | G100: 0 | H100: 0 | I100: 0 | J100: 0 | K100: 0 | L100: 0 | M100: 0 | N100: 0
A101: 165001118 | B101: Prepaid Sales Taxes | C101: 359573 | D101: 407589 | E101: 418844 | F101: 339273 | G101: 355452 | H101: 342032 | I101: 374820 | J101: 382531 | K101: 345602 | L101: 370376 | M101: 337654 | N101: 316588
A102: 165001216 | B102: Prepaid Use Taxes | C102: 0 | D102: 0 | E102: 0 | F102: 0 | G102: 0 | H102: 0 | I102: 0 | J102: 0 | K102: 0 | L102: 0 | M102: 0 | N102: 0
A103: 165001217 | B103: Prepaid Use Taxes | C103: 0 | D103: 0 | E103: 0 | F103: 0 | G103: 0 | H103: 0 | I103: 0 | J103: 0 | K103: 0 | L103: 0 | M103: 0 | N103: 0
A104: 165001218 | B104: Prepaid Use Taxes | C104: 112235 | D104: 61809 | E104: 69866 | F104: 60249 | G104: 44845 | H104: 59709 | I104: 56899 | J104: 40920 | K104: 53743 | L104: 50004 | M104: 40958 | N104: 33528
A105: 1650014 | B105: FAS 158 Qual Contra Asset | C105: -48561346.21 | D105: -48421601.72 | E105: -48211146.45 | F105: -48047831.69 | G105: -47884516.93 | H105: -47721202.17 | I105: -47557887.41 | J105: -47394572.65 | K105: -47231257.89 | L105: -47067943.13 | M105: -46904628.37 | N105: -46741313.61
A106: 1650017 | B106: Prepayment - Coal | C106: 3433976.94 | D106: 2275996.95 | E106: 1956412.02 | F106: 1924726.52 | G106: 1316307.1 | H106: 0 | I106: 0 | J106: 0 | K106: 0 | L106: 0 | M106: 0 | N106: 0
A107: 1650021 | B107: Prepaid Insurance - EIS | C107: 324401.443 | D107: 215132.993 | E107: 627952.853 | F107: 531751.123 | G107: 435549.393 | H107: 339347.703 | I107: 1015640.143 | J107: 907884.323 | K107: 800128.503 | L107: 692372.683 | M107: 584616.863 | N107: 476861.043
A108: 1650023 | B108: Prepaid Lease | C108: 0 | D108: 0 | E108: 19055.65 | F108: 0 | G108: 0 | H108: 14405.9 | I108: 0 | J108: 0 | K108: 12389.36 | L108: 0 | M108: 0 | N108: 18706.76
A109: 1650035 | B109: PRW Without MED-D Benefits | C109: 12449517.96 | D109: 12776014.31 | E109: 13110928.86 | F109: 13424888.05 | G109: 13754190.46 | H109: 14083492.87 | I109: 14412795.28 | J109: 14742097.69 | K109: 15071400.1 | L109: 15400702.51 | M109: 15730004.92 | N109: 16060501.63
A110: 1650037 | B110: FAS158 Contra-PRW Exclud Med-D | C110: -12449517.96 | D110: -12776014.31 | E110: -13110928.86 | F110: -13424888.05 | G110: -13754190.46 | H110: -14083492.87 | I110: -14412795.28 | J110: -14742097.69 | K110: -15071400.1 | L110: -15400702.51 | M110: -15730004.92 | N110: -16060501.63
A111: 1720000 | B111: Rents Receivable | C111: 3205832.68 | D111: 3452788.97 | E111: 3699745.26 | F111: 3946701.55 | G111: 4226323.1 | H111: 4038576.64 | I111: 1825309.86 | J111: 2103583.46 | K111: 2381841.06 | L111: 2660098.66 | M111: 2938356.26 | N111: 3216613.78
A112: 1730000 | B112: Accrued Utility Revenues | C112: 18378816.33 | D112: 10960215.92 | E112: 18716230.48 | F112: 12835041.09 | G112: 20589598.56 | H112: 17885372.67 | I112: 17164113.12 | J112: 19234025.46 | K112: 14358024.76 | L112: 17370339.81 | M112: 22781928.15 | N112: 21238242.8
A113: 1730002 | B113: Acrd Utility Rev-Factored-Assc | C113: -14130303.57 | D113: -11936062.67 | E113: -10038408.26 | F113: -9845213.45 | G113: -10158046.24 | H113: -11588394.22 | I113: -10478888.11 | J113: -10415007.58 | K113: -8165053 | L113: -12887057.6 | M113: -15553992.17 | N113: -12306934.9
A114: 1740000 | B114: Misc Current & Accrued Assets | C114: 0 | D114: 0 | E114: 99844.93 | F114: 0 | G114: 0 | H114: 0 | I114: 0 | J114: 0 | K114: 0 | L114: 0 | M114: 0 | N114: 0
A115: 174001116 | B115: Non-Highway Fuel Tax Credit | C115: 0 | D115: 0 | E115: 0 | F115: 0 | G115: 0 | H115: 0 | I115: 0 | J115: 0 | K115: 0 | L115: 0 | M115: 0 | N115: -717
A116: 1750001 | B116: Curr. Unreal Gains - NonAffil | C116: 4284795.32 | D116: 1940909.1 | E116: 982337.86 | F116: 951693.48 | G116: 846173.59 | H116: 6331000.32 | I116: 6995452.53 | J116: 6551788.13 | K116: 7035394.66 | L116: 7097291.95 | M116: 8221170.3 | N116: 5948442.34
A117: 1750002 | B117: Long-Term Unreal Gns - Non Aff | C117: 424121.9 | D117: 464425.58 | E117: 476629.03 | F117: 488779.92 | G117: 496516.55 | H117: 395909.6 | I117: 366268.4 | J117: 242244.73 | K117: 270358.36 | L117: 236140.14 | M117: 278749.86 | N117: 159088.28
A118: 1750021 | B118: S/T Asset MTM Collateral | C118: -564419 | D118: -251633 | E118: -41932 | F118: -17220 | G118: -143942 | H118: -122338 | I118: -79701 | J118: -34297 | K118: 0 | L118: -92786 | M118: -116744 | N118: -226604
A119: 1750022 | B119: L/T Asset MTM Collateral | C119: 0 | D119: 0 | E119: 0 | F119: -1616 | G119: -18846 | H119: -20295 | I119: -29316 | J119: -7167 | K119: 0 | L119: 0 | M119: 0 | N119: -17
A120: 1810002 | B120: Unamort Debt Exp - Inst Pur Cn | C120: 130018.09 | D120: 125374.59 | E120: 120731.09 | F120: 116087.59 | G120: 111444.09 | H120: 106800.59 | I120: 102157.09 | J120: 97513.59 | K120: 92870.09 | L120: 88226.59 | M120: 83583.09 | N120: 78939.58
A121: 1810003 | B121: Unamort Debt Exp Notes Payable | C121: 99834.61 | D121: 88741.87 | E121: 77649.13 | F121: 66556.39 | G121: 55463.65 | H121: 44370.91 | I121: 33278.17 | J121: 22185.43 | K121: 11092.69 | L121: 484032.08 | M121: 481301.27 | N121: 471259.08
A122: 1810006 | B122: Unamort Debt Exp - Sr Unsec Nt | C122: 2545984.95 | D122: 2525607.85 | E122: 2505230.75 | F122: 2484853.65 | G122: 2464476.55 | H122: 2444099.45 | I122: 2423722.35 | J122: 2403345.25 | K122: 2382968.15 | L122: 2362591.03 | M122: 2342213.93 | N122: 2321836.81
A123: 1823000 | B123: Other Regulatory Assets | C123: 259791.45 | D123: 240805.89 | E123: 216725.29 | F123: 192644.7 | G123: 168834.1 | H123: 176969.66 | I123: 153129.2 | J123: 128926.36 | K123: 104723.52 | L123: 80520.68 | M123: 56317.84 | N123: 32115
A124: 1823007 | B124: SFAS 112 Postemployment Benef | C124: 2547467.33 | D124: 2547467.33 | E124: 2809366.33 | F124: 2809366.33 | G124: 2809366.33 | H124: 2809366.33 | I124: 2809366.33 | J124: 2809366.33 | K124: 2809366.33 | L124: 2809366.33 | M124: 2809366.33 | N124: 2809366.33
A125: 1823009 | B125: DSM Incentives | C125: 4451626 | D125: 4457803 | E125: 4463980 | F125: 4470157 | G125: 4476334 | H125: 4482511 | I125: 4488688 | J125: 4494865 | K125: 4501042 | L125: 4507219 | M125: 4516677 | N125: 4511070
A126: 1823010 | B126: Energy Efficiency Recovery | C126: -61408597.87 | D126: -61769426.64 | E126: -61883238.89 | F126: -62050963.53 | G126: -62253018.36 | H126: -62320513 | I126: -62374203.88 | J126: -62427852.03 | K126: -62480044.59 | L126: -62523058.22 | M126: -62675953.76 | N126: -62710488.3
A127: 1823011 | B127: DSM Lost Revenues | C127: 15331759 | D127: 15348260 | E127: 15364761 | F127: 15381262 | G127: 15397763 | H127: 15414264 | I127: 15430765 | J127: 15447266 | K127: 15463767 | L127: 15480268 | M127: 15619159 | N127: 15642058
A128: 1823012 | B128: DSM Program Costs | C128: 41625212.87 | D128: 41963363.64 | E128: 42054497.89 | F128: 42199544.53 | G128: 42378921.36 | H128: 42423738 | I128: 42454750.88 | J128: 42485721.03 | K128: 42515235.59 | L128: 42535571.22 | M128: 42540117.76 | N128: 42557360.3
A129: 1823022 | B129: HRJ 765kV Post Service AFUDC | C129: 495816 | D129: 493032 | E129: 490248 | F129: 487464 | G129: 484680 | H129: 481896 | I129: 479112 | J129: 476328 | K129: 473544 | L129: 470760 | M129: 467976 | N129: 465192
A130: 1823054 | B130: HRJ 765kV Depreciation Expense | C130: 77255 | D130: 76821 | E130: 76387 | F130: 75953 | G130: 75519 | H130: 75085 | I130: 74651 | J130: 74217 | K130: 73783 | L130: 73349 | M130: 72915 | N130: 72481
A131: 1823063 | B131: Unrecovered Fuel Cost | C131: 6198720.92 | D131: 5219627.92 | E131: 5649065.41 | F131: 8278110.12 | G131: 3000333.12 | H131: 2269764.12 | I131: 1678762.12 | J131: 1301944.12 | K131: 1982812.93 | L131: 1072923.12 | M131: 4060797.12 | N131: 2379150.12
A132: 1823077 | B132: Unreal Loss on Fwd Commitments | C132: 0 | D132: 0 | E132: 0 | F132: 0 | G132: 0 | H132: 0 | I132: 0 | J132: 0 | K132: 0 | L132: 0 | M132: 123858 | N132: 155170
A133: 1823078 | B133: Deferred Storm Expense | C133: 10260575.72 | D133: 10088362.48 | E133: 9916149.24 | F133: 9743936 | G133: 9571722.76 | H133: 9399509.52 | I133: 9227296.28 | J133: 9055083.04 | K133: 8882869.8 | L133: 8710656.56 | M133: 8538443.32 | N133: 8366230.08
A134: 1823108 | B134: Reg Asset - Rate Case Expenses | C134: 1358982.97 | D134: 1320788.53 | E134: 1282594.09 | F134: 1244399.65 | G134: 1206205.21 | H134: 1168010.77 | I134: 1129816.33 | J134: 1091621.89 | K134: 1053427.45 | L134: 1015233.01 | M134: 977038.57 | N134: 938844.13
A135: 1823115 | B135: Defd Equity Carry Chg-Non Fuel | C135: -24127 | D135: -23078 | E135: -22029 | F135: -20980 | G135: -19931 | H135: -18882 | I135: -17833 | J135: -16784 | K135: -15735 | L135: -14686 | M135: -13637 | N135: -12588
A136: 1823118 | B136: BridgeCo TO Funding | C136: 82046.148 | D136: 78727.678 | E136: 75387.598 | F136: 72025.798 | G136: 68642.118 | H136: 65236.408 | I136: 61808.538 | J136: 58358.368 | K136: 54885.748 | L136: 51390.528 | M136: 47872.558 | N136: 44331.688
A137: 1823120 | B137: Other PJM Integration | C137: 86681.315 | D137: 83175.335 | E137: 79646.545 | F137: 76094.785 | G137: 72519.915 | H137: 68921.785 | I137: 65300.235 | J137: 61655.115 | K137: 57986.275 | L137: 54293.565 | M137: 50576.825 | N137: 46835.895
A138: 1823121 | B138: Carry Chgs-RTO Startup Costs | C138: 54246.81 | D138: 52052.7 | E138: 49844.32 | F138: 47621.56 | G138: 45384.34 | H138: 43132.56 | I138: 40866.13 | J138: 38584.95 | K138: 36288.92 | L138: 33977.95 | M138: 31651.94 | N138: 29310.8
A139: 1823122 | B139: Alliance RTO Deferred Expense | C139: 42941.765 | D139: 41204.905 | E139: 39456.745 | F139: 37697.205 | G139: 35926.215 | H139: 34143.705 | I139: 32349.595 | J139: 30543.805 | K139: 28726.265 | L139: 26896.895 | M139: 25055.625 | N139: 23202.375
A140: 1823165 | B140: REG ASSET FAS 158 QUAL PLAN | C140: 43638803 | D140: 43638803 | E140: 42897814.75 | F140: 42897814.75 | G140: 42897814.75 | H140: 42156826.5 | I140: 42156826.5 | J140: 42156826.5 | K140: 41415838.25 | L140: 41415838.25 | M140: 41415838.25 | N140: 45093273
A141: 1823166 | B141: REG ASSET FAS 158 OPEB PLAN | C141: -4133327.5 | D141: -4133327.5 | E141: -3659048.5 | F141: -3659048.5 | G141: -3659048.5 | H141: -3184769.5 | I141: -3184769.5 | J141: -3184769.5 | K141: -2710490.5 | L141: -2710490.5 | M141: -2710490.5 | N141: 1621311
A142: 1823167 | B142: REG Asset FAS 158 SERP Plan | C142: -74813 | D142: -74813 | E142: -75238.5 | F142: -75238.5 | G142: -75238.5 | H142: -75664 | I142: -75664 | J142: -75664 | K142: -76089.5 | L142: -76089.5 | M142: -76089.5 | N142: -101093
A143: 1823196 | B143: OSS Margin Sharing | C143: 41999.926 | D143: 358270.086 | E143: 1211837.486 | F143: 1727802.566 | G143: 1613164.736 | H143: 2001411.626 | I143: 1126988.666 | J143: 254119.786 | K143: 552319.046 | L143: 364867.896 | M143: 828368.056 | N143: 1082687.896
A144: 1823299 | B144: SFAS 106 Medicare Subsidy | C144: 1498288.03 | D144: 1480236.35 | E144: 1462184.67 | F144: 1444132.99 | G144: 1426081.31 | H144: 1408029.63 | I144: 1389977.95 | J144: 1371926.27 | K144: 1353874.59 | L144: 1335822.91 | M144: 1317771.23 | N144: 1299719.55
A145: 1823301 | B145: SFAS 109 Flow Thru Defd FIT | C145: 39962666.88 | D145: 39941991.51 | E145: 39984475.04 | F145: 40028717.55 | G145: 40047131.31 | H145: 40103820.92 | I145: 40140948.63 | J145: 40119336.31 | K145: 39917242.72 | L145: 40355869.56 | M145: 40318531.66 | N145: 36935498.79
A146: 1823302 | B146: SFAS 109 Flow Thru Defrd SIT | C146: 99537358.82 | D146: 99585430.64 | E146: 99966477.43 | F146: 102832312.4 | G146: 102806300.4 | H146: 103192519.4 | I146: 103495975.5 | J146: 103495975.5 | K146: 104194685.5 | L146: 104194685.5 | M146: 105137337.5 | N146: 104847034.5
A147: 1823306 | B147: Net CCS FEED Study Costs | C147: 782662.88 | D147: 779753.35 | E147: 776843.82 | F147: 773934.29 | G147: 771024.76 | H147: 768115.23 | I147: 765205.7 | J147: 762296.17 | K147: 759386.64 | L147: 756477.11 | M147: 753567.58 | N147: 750658.05
A148: 1823376 | B148: Cost of Removal-Big Sandy Coal | C148: -38724399.35 | D148: -38654636.34 | E148: -38451860.23 | F148: -38278376.82 | G148: -37565413.39 | H148: -37190831.87 | I148: -36812990.39 | J148: -36453002.79 | K148: -35913756.5 | L148: -34695164.53 | M148: -33204967.57 | N148: -32667030.75
A149: 1823377 | B149: NBV - AROs Retired Plants | C149: 33901882.56 | D149: 31992883.64 | E149: 32079011.35 | F149: 30725493.55 | G149: 28251078.88 | H149: 25082194.2 | I149: 22839132.02 | J149: 20368646.75 | K149: 21694460.36 | L149: 18685422.19 | M149: 16688062.22 | N149: 28706829.23
A150: 1823378 | B150: M&S - Retiring Plants | C150: 3308604.63 | D150: 3308604.63 | E150: 3292852.86 | F150: 3288537.13 | G150: 3087312.57 | H150: 3088196.67 | I150: 3087102.65 | J150: 3087356.1 | K150: 3084285.08 | L150: 3085203.44 | M150: 3087254.38 | N150: 3015785.42
A151: 1823379 | B151: Unrecovered Plant - Big Sandy | C151: 257195943.7 | D151: 257195943.7 | E151: 257195943.7 | F151: 257195943.7 | G151: 257195943.7 | H151: 257195943.7 | I151: 257195943.7 | J151: 257195943.7 | K151: 257195943.7 | L151: 257195943.7 | M151: 257195943.7 | N151: 256546287.9
A152: 1823380 | B152: Spent AROs - Big Sandy Coal | C152: 40025005.09 | D152: 42065840.62 | E152: 44053072.8 | F152: 45531926.09 | G152: 48126522.16 | H152: 52033513.18 | I152: 54375062.73 | J152: 56935438.28 | K152: 57623020 | L152: 60716430.84 | M152: 62786572.06 | N152: 64331857.95
A153: 1823410 | B153: BS1OR Unrecognized Equity CC | C153: -1685649.99 | D153: -1748822.32 | E153: -1749279.59 | F153: -1749279.59 | G153: -1749279.59 | H153: -1749279.59 | I153: -1749279.59 | J153: -1749279.59 | K153: -1749279.59 | L153: -1749279.59 | M153: -1749279.59 | N153: -1749279.59
A154: 1823411 | B154: BS1OR Under Recovery CC | C154: 3389717.93 | D154: 3540812.47 | E154: 3541730.57 | F154: 3541730.57 | G154: 3541730.57 | H154: 3541730.57 | I154: 3541730.57 | J154: 3541730.57 | K154: 3541730.57 | L154: 3541730.57 | M154: 3541730.57 | N154: 3541730.57
A155: 1823414 | B155: Capacity Charge Tariff Rev | C155: 31996.96 | D155: -121278.67 | E155: -145205.92 | F155: 0 | G155: 0 | H155: 0 | I155: 0 | J155: 0 | K155: 0 | L155: 0 | M155: 0 | N155: 0
A156: 1823429 | B156: Rockport Capacity Def-Eqty CC | C156: 0 | D156: -1642.47 | E156: -6034.19 | F156: -13520.08 | G156: -24100.13 | H156: -37774.35 | I156: -54542.74 | J156: -74405.29 | K156: -97362.01 | L156: -123412.9 | M156: -152557.95 | N156: -184797.17
A157: 1823430 | B157: Rockport Capacity CC Deferral | C157: 0 | D157: 3442.2 | E157: 12646.12 | F157: 28334.63 | G157: 50507.72 | H157: 79165.39 | I157: 114307.65 | J157: 155934.49 | K157: 204045.91 | L157: 258641.92 | M157: 319722.51 | N157: 387287.68
A158: 1823431 | B158: Rockport Capacity Deferral | C158: 524193.55 | D158: 1774193.55 | E158: 3024193.55 | F158: 4274193.55 | G158: 5524193.55 | H158: 6774193.55 | I158: 8024193.55 | J158: 9274193.55 | K158: 10524193.55 | L158: 11774193.55 | M158: 13024193.55 | N158: 14274193.55
A159: 1823515 | B159: IGCC Pre-Construction Costs | C159: 1193691 | D159: 1189253.49 | E159: 1184815.98 | F159: 1180378.47 | G159: 1175940.96 | H159: 1171503.45 | I159: 1167065.94 | J159: 1162628.43 | K159: 1158190.92 | L159: 1153753.41 | M159: 1149315.9 | N159: 1144878.39
A160: 1823516 | B160: BS1OR Under Recovery | C160: -2622358.86 | D160: -2110785.07 | E160: -2107047.09 | F160: -2107047.09 | G160: -2107047.09 | H160: -2107047.09 | I160: -2107047.09 | J160: -2107047.09 | K160: -2107047.09 | L160: -2107047.09 | M160: -2107047.09 | N160: -2107047.09
A161: 1823517 | B161: Big Sandy Recov O/U Balancing | C161: -6772938.64 | D161: -7841147.61 | E161: -8738702.56 | F161: -9294261.03 | G161: -10435194.41 | H161: -10865379.51 | I161: -11157573.63 | J161: -11769087.45 | K161: -12159646.15 | L161: -12607978.99 | M161: -13192287.98 | N161: -13755874.91
A162: 1823518 | B162: BSDR Unit 2 O&M | C162: 860030.05 | D162: 861282.74 | E162: 861280.48 | F162: 861450.08 | G162: 861484.73 | H162: 861484.73 | I162: 861654.33 | J162: 861654.33 | K162: 861654.33 | L162: 861823.93 | M162: 900452.16 | N162: 917490.78
A163: 1823519 | B163: Unrecovered Purch Power-PPA | C163: 312298.43 | D163: 161224.29 | E163: 0 | F163: 0 | G163: 0 | H163: 0 | I163: 0 | J163: 0 | K163: 0 | L163: 0 | M163: 0 | N163: 0
A164: 1823520 | B164: Under Recovery-Environmental | C164: 6345534.21 | D164: 8364773.73 | E164: 2404247.73 | F164: 4980883.73 | G164: 5726619.73 | H164: 5186880.73 | I164: 4525087.73 | J164: 4378411.73 | K164: 4864322.73 | L164: 5123705.73 | M164: 4643881.73 | N164: 4644237.73
A165: 1823521 | B165: Carrying Charge - Environmenta | C165: 0 | D165: 0 | E165: 0 | F165: 0 | G165: 0 | H165: 0 | I165: 0 | J165: 0 | K165: 0 | L165: 0 | M165: 0 | N165: 0
A166: 1823522 | B166: CC - Environmental Unrec Equit | C166: 0 | D166: 0 | E166: 0 | F166: 0 | G166: 0 | H166: 0 | I166: 0 | J166: 0 | K166: 0 | L166: 0 | M166: 0 | N166: 0
A167: 1823523 | B167: Deferred O&M - Environmental | C167: 0 | D167: 0 | E167: 0 | F167: 0 | G167: 0 | H167: 0 | I167: 0 | J167: 0 | K167: 0 | L167: 0 | M167: 0 | N167: 0
A168: 1823524 | B168: Deferred Consumable Exp - Envi | C168: 0 | D168: 0 | E168: 0 | F168: 0 | G168: 0 | H168: 0 | I168: 0 | J168: 0 | K168: 0 | L168: 0 | M168: 0 | N168: 0
A169: 1823525 | B169: Deferred Property Tax - Enviro | C169: 0 | D169: 0 | E169: 0 | F169: 0 | G169: 0 | H169: 0 | I169: 0 | J169: 0 | K169: 0 | L169: 0 | M169: 0 | N169: 0
A170: 1823536 | B170: CC-NERC Compl/Cyber Unrec Eqty | C170: -17349.81 | D170: -17226.49 | E170: -17103.17 | F170: -16979.85 | G170: -16856.53 | H170: -16733.21 | I170: -16609.89 | J170: -16486.57 | K170: -16363.25 | L170: -16239.93 | M170: -16116.61 | N170: -15993.29
A171: 1823537 | B171: CC-NERC Compliance/Cyber Sec | C171: 34989.03 | D171: 34743.37 | E171: 34497.71 | F171: 34252.05 | G171: 34006.39 | H171: 33760.73 | I171: 33515.07 | J171: 33269.41 | K171: 33023.75 | L171: 32778.09 | M171: 32532.43 | N171: 32286.77
A172: 1823538 | B172: Def Depr-NERC Compli/Cybersec | C172: 106630.74 | D172: 105888.38 | E172: 105146.02 | F172: 104403.66 | G172: 103661.3 | H172: 102918.94 | I172: 102176.58 | J172: 101434.22 | K172: 100691.86 | L172: 99949.5 | M172: 99207.14 | N172: 98464.78
A173: 1823547 | B173: Def Depr-Big Sandy Unit 1 Gas | C173: 977871.75 | D173: 1038212.87 | E173: 1038595.87 | F173: 1038595.87 | G173: 1038595.87 | H173: 1038595.87 | I173: 1038595.87 | J173: 1038595.87 | K173: 1038595.87 | L173: 1038595.87 | M173: 1038595.87 | N173: 1038595.87
A174: 1823550 | B174: Def Prop Tax-Big Sandy U1 Gas | C174: 352917.21 | D174: 359390.23 | E174: 359437.53 | F174: 359437.53 | G174: 359437.53 | H174: 359437.53 | I174: 359437.53 | J174: 359437.53 | K174: 359437.53 | L174: 359437.53 | M174: 359437.53 | N174: 359437.53
A175: 1823557 | B175: KY Under-recovered PPA Rider | C175: 0 | D175: 865655.23 | E175: 1693573.79 | F175: 283757.402 | G175: 0.002 | H175: 513993.492 | I175: 575062.682 | J175: 0.002 | K175: 0.002 | L175: 0.002 | M175: 0.002 | N175: 0.002
A176: 1830000 | B176: Prelimin Surv&Investgtn Chrgs | C176: 940624.52 | D176: 807438.57 | E176: 914095.3 | F176: 1070725.18 | G176: 1127525.92 | H176: 1175418.1 | I176: 1539127.03 | J176: 1841412.22 | K176: 2300826.49 | L176: 2505272.93 | M176: 2521358.9 | N176: 2607413.87
A177: 1840002 | B177: Accounts Pay Adj - Clearing | C177: 0 | D177: 0 | E177: 0 | F177: 0 | G177: 0 | H177: 0 | I177: 0 | J177: 0 | K177: 0 | L177: -484.42 | M177: 0 | N177: 0
A178: 1840020 | B178: Simulator Learning Center-Clrg | C178: 0 | D178: 0 | E178: 0 | F178: 0 | G178: 0 | H178: 0 | I178: 0 | J178: 0 | K178: 0 | L178: 0 | M178: 0 | N178: 0
A179: 1840029 | B179: Transp-Assigned Vehicles | C179: 0 | D179: 0 | E179: 0 | F179: 0 | G179: 0 | H179: 0 | I179: 0 | J179: 0 | K179: 0 | L179: 0 | M179: 0 | N179: 0
A180: 1840054 | B180: Insurance Clearing | C180: 0 | D180: 0 | E180: 0 | F180: 0 | G180: 0 | H180: 0 | I180: 0 | J180: 0 | K180: 0 | L180: 0 | M180: 0 | N180: 0
A181: 1860001 | B181: Allowances | C181: 201.52 | D181: 201.52 | E181: 247.17 | F181: 201.52 | G181: 201.52 | H181: 201.52 | I181: 201.52 | J181: 201.52 | K181: 601.52 | L181: 201.52 | M181: 201.52 | N181: 247.17
A182: 1860002 | B182: Deferred Expenses | C182: 21262.58 | D182: 17918.72 | E182: 18722.2 | F182: 20065.57 | G182: 15581.12 | H182: 19820.39 | I182: 25057.71 | J182: 25143.23 | K182: 25410.52 | L182: 25611.2 | M182: 25882.8 | N182: 3869.78
A183: 186000315 | B183: Deferred Property Taxes | C183: 0 | D183: 0 | E183: 0 | F183: 0 | G183: 0 | H183: 0 | I183: 0 | J183: 0 | K183: 0 | L183: 0 | M183: 0 | N183: 0
A184: 186000316 | B184: Deferred Property Taxes | C184: 1313047.36 | D184: 1055149.96 | E184: 791361.96 | F184: 527573.96 | G184: 263785.96 | H184: 0 | I184: 0 | J184: 0 | K184: 0 | L184: 0 | M184: 0 | N184: 0
A185: 186000317 | B185: Deferred Property Taxes | C185: 12731631 | D185: 11861431 | E185: 10991231 | F185: 10121031 | G185: 9250831 | H185: 8380631 | I185: 7247145 | J185: 6018291.79 | K185: 4894342.79 | L185: 3770393.79 | M185: 2646444.79 | N185: 1522495.79
A186: 186000318 | B186: Deferred Property Taxes | C186: 0 | D186: 0 | E186: 0 | F186: 0 | G186: 0 | H186: 0 | I186: 0 | J186: 0 | K186: 0 | L186: 0 | M186: 0 | N186: 19141913
A187: 1860005 | B187: Unidentified Cash Receipts | C187: 0 | D187: 0 | E187: 0 | F187: 0 | G187: 0 | H187: 0 | I187: 0 | J187: 0 | K187: 0 | L187: 0 | M187: 0 | N187: 0
A188: 1860007 | B188: Billings and Deferred Projects | C188: 794977.427 | D188: 1307373.837 | E188: 1104835.907 | F188: 1256810.687 | G188: 1815010.607 | H188: 1209007.377 | I188: 1254574.167 | J188: 1319169.997 | K188: 1323842.167 | L188: 1877336.627 | M188: 2084883.637 | N188: 144915.247
A189: 1860077 | B189: Agency Fees - Factored A/R | C189: 1214017.43 | D189: 1112580.44 | E189: 951671.3 | F189: 968417.51 | G189: 955201.65 | H189: 922096.38 | I189: 918562.93 | J189: 865739.33 | K189: 788742.75 | L189: 813580.56 | M189: 849397.99 | N189: 863408.09
A190: 186008117 | B190: Defd Property Tax - Cap Lease | C190: 0 | D190: 0 | E190: 0 | F190: 0 | G190: 0 | H190: 0 | I190: 0 | J190: 0 | K190: 0 | L190: 0 | M190: 0 | N190: 0
A191: 186008118 | B191: Defd Property Tax - Cap Lease | C191: 249606.5 | D191: 226915.5 | E191: 204224.5 | F191: 181533.5 | G191: 158842.5 | H191: 136151.5 | I191: 113460.5 | J191: 90769.5 | K191: 68078.5 | L191: 45387.5 | M191: 22696.5 | N191: 0
A192: 1860087 | B192: Estimated Barging Bills | C192: 875852.64 | D192: 882656.22 | E192: 1679670.9 | F192: 969108.86 | G192: 721377.16 | H192: 907340.71 | I192: 931119.27 | J192: 927458.25 | K192: 932435.57 | L192: 897133.19 | M192: 1725835.92 | N192: 900951.95
A193: 1860153 | B193: Unamortized Credit Line Fees | C193: 222761.86 | D193: 217328.64 | E193: 219936.86 | F193: 214297.45 | G193: 195717.25 | H193: 190427.59 | I193: 185137.93 | J193: 179848.27 | K193: 174558.61 | L193: 169268.95 | M193: 162132.09 | N193: 299748.26
A194: 1860166 | B194: Def Lease Assets - Non Taxable | C194: 5160.2 | D194: 0 | E194: 25133.35 | F194: 38470.12 | G194: 26017.96 | H194: 26017.96 | I194: 26017.96 | J194: 26017.96 | K194: 84103.5 | L194: 84103.5 | M194: 0 | N194: 60337.41
A195: 1860185 | B195: Long Term Assoc AR | C195: 0 | D195: 0 | E195: 0 | F195: 0 | G195: 0 | H195: 1064577 | I195: 1064577 | J195: 1064577 | K195: 532288.5 | L195: 0 | M195: 0 | N195: 0
A196: 1860186 | B196: Buckeye Power TSA - Clearing | C196: 0 | D196: 0 | E196: 0 | F196: 0 | G196: 0 | H196: 0 | I196: 0 | J196: 0.02 | K196: 0 | L196: 0 | M196: 0 | N196: 0
A197: 1890004 | B197: Loss Rec Debt-Debentures | C197: 499153.06 | D197: 496348.83 | E197: 493544.6 | F197: 490740.37 | G197: 487936.14 | H197: 485131.91 | I197: 482327.68 | J197: 479523.45 | K197: 476719.22 | L197: 473914.99 | M197: 471110.76 | N197: 468306.53
A198: 1900010 | B198: ADIT Federal - Pension OCI | C198: 315750.96 | D198: 315750.96 | E198: 312938.69 | F198: 312938.69 | G198: 312938.69 | H198: 310126.42 | I198: 310126.42 | J198: 310126.42 | K198: 307314.15 | L198: 307314.15 | M198: 307314.15 | N198: 278074.02
A199: 1900011 | B199: ADIT Federal Non-UMWA PRW OCI | C199: -400110.16 | D199: -400110.16 | E199: -391425.68 | F199: -391425.68 | G199: -391425.68 | H199: -382741.2 | I199: -382741.2 | J199: -382741.2 | K199: -374056.72 | L199: -374056.72 | M199: -374056.72 | N199: -221722.83
A200: 1900015 | B200: ADIT-Fed-Hdg-CF-Int Rate | C200: 0 | D200: 0 | E200: 0 | F200: 0 | G200: 0 | H200: 0 | I200: 0 | J200: 0 | K200: 0 | L200: 0 | M200: 0 | N200: 0
A201: 1901001 | B201: Accum Deferred FIT - Other | C201: 6873300.89 | D201: 6260531.43 | E201: 6484522.61 | F201: 5490063.79 | G201: 4978221.8 | H201: 5017674.53 | I201: 4527426.22 | J201: 3912642.27 | K201: 4873072.21 | L201: 4414011.55 | M201: 4299754.55 | N201: 5211191.37
A202: 1901002 | B202: Accum Deferred SIT - Other | C202: 9030721.48 | D202: 9030721.48 | E202: 8607328.95 | F202: 8607328.95 | G202: 8607328.95 | H202: 8935389.84 | I202: 8935389.84 | J202: 8935389.84 | K202: 9082881.38 | L202: 9082881.38 | M202: 9082881.38 | N202: 6108411.66
... 703 more rows

Sheet 2019
A1: Kentucky Power Corp Consol
A2: 2019 Trial Balances
A4: Account Number | B4: Account Description | C4: Jan 2019 | D4: Feb 2019 | E4: Mar 2019 | F4: Apr 2019 | G4: May 2019 | H4: Jun 2019 | I4: Jul 2019 | J4: Aug 2019 | K4: Sep 2019 | L4: Oct 2019 | M4: Nov 2019 | N4: Dec 2019
A6: 1010001 | B6: Plant in Service | C6: 2672569339 | D6: 2683396125 | E6: 2689711494 | F6: 2694706116 | G6: 2701944561 | H6: 2706683008 | I6: 2715507457 | J6: 2726462802 | K6: 2729798942 | L6: 2734015765 | M6: 2734129983 | N6: 2739638354
A7: 1010008 | B7: Cloud Implement - PIS | C7: 0 | D7: 0 | E7: 0 | F7: 0 | G7: 0 | H7: 0 | I7: 0 | J7: 0 | K7: 0 | L7: 0 | M7: 0 | N7: 0
A8: 1011001 | B8: Capital Leases | C8: 4565452.25 | D8: 4594288.28 | E8: 4639811.98 | F8: 4626714.56 | G8: 4581117.23 | H8: 4578978.26 | I8: 4040079.26 | J8: 3978708.11 | K8: 4047650 | L8: 4195223.16 | M8: 4184179.6 | N8: 4418037.83
A9: 1011006 | B9: Prov-Leased Assets | C9: -2093065.17 | D9: -2025296.1 | E9: -2046479.51 | F9: -2086282.83 | G9: -2072260.79 | H9: -2122673.3 | I9: -1637461.2 | J9: -1597246.31 | K9: -1686275.32 | L9: -1688944.23 | M9: -1713534.75 | N9: -1758988.81
A10: 1011012 | B10: Accrued Capital Leases | C10: 74650 | D10: 77787.19 | E10: 130097 | F10: 259108.53 | G10: 247312.91 | H10: 222798.01 | I10: 15287.04 | J10: 126365.06 | K10: 390528.39 | L10: 210347.69 | M10: 809121.45 | N10: 644124.33
A11: 1011031 | B11: Operating Lease | C11: -31300.64 | D11: -31300.64 | E11: 10211364.32 | F11: 10396168.61 | G11: 10406940.36 | H11: 10371376.64 | I11: 10365185.03 | J11: 10692605.19 | K11: 11110236.18 | L11: 11249661.5 | M11: 11269437.14 | N11: 11687107.06
A12: 1011032 | B12: Accrued Operating Leases | C12: 156446.31 | D12: 269022.24 | E12: 190707.12 | F12: 11465.03 | G12: 0 | H12: 7099.12 | I12: 524860.05 | J12: 724701.66 | K12: 449938.32 | L12: 336017.11 | M12: 422255.54 | N12: 275984.94
A13: 1011034 | B13: Operating Leases - Gen & Misc | C13: 9738612.17 | D13: 9895045.85 | E13: 0 | F13: 0 | G13: 0 | H13: 0 | I13: 0 | J13: 0 | K13: 0 | L13: 0 | M13: 0 | N13: 0
A14: 1011036 | B14: Prov - Operating Lease Assets | C14: 501.14 | D14: 1003.53 | E14: -461673.53 | F14: -620316.9 | G14: -766126.36 | H14: -930637.92 | I14: -1096406.75 | J14: -1207897.44 | K14: -1362301.21 | L14: -1570231.77 | M14: -1706860.06 | N14: -1835805.44
A15: 1011039 | B15: Prov-Operating Lease -Gen&Misc | C15: -153143.49 | D15: -304847.93 | E15: 0 | F15: 0 | G15: 0 | H15: 0 | I15: 0 | J15: 0 | K15: 0 | L15: 0 | M15: 0 | N15: 0
A16: 1050001 | B16: Held For Fut Use | C16: 556145.38 | D16: 556145.38 | E16: 556145.38 | F16: 556145.38 | G16: 556145.38 | H16: 556145.38 | I16: 556145.38 | J16: 556145.38 | K16: 556145.38 | L16: 556145.38 | M16: 556145.38 | N16: 556145.38
A17: 1060001 | B17: Const Not Classifd | C17: 60979323.6 | D17: 53603712.94 | E17: 54338237.32 | F17: 53980985.98 | G17: 50884560.1 | H17: 56463603.63 | I17: 55356204.56 | J17: 56967802.21 | K17: 56464707.53 | L17: 82135451.5 | M17: 108528209.5 | N17: 126603497.7
A18: 1060007 | B18: Cloud Implement - CCNC | C18: 0 | D18: 0 | E18: 0 | F18: 0 | G18: 0 | H18: 0 | I18: 0 | J18: 0 | K18: 0 | L18: 0 | M18: 0 | N18: 0
A19: 1070000 | B19: Construction Work In Progress | C19: 0 | D19: 0 | E19: 0 | F19: 0 | G19: 0 | H19: 0 | I19: 0 | J19: 0 | K19: 0 | L19: 0 | M19: 0 | N19: 0
A20: 1070001 | B20: CWIP - Project | C20: 88296369.52 | D20: 93418197.42 | E20: 97511732.62 | F20: 105844964.6 | G20: 115614529 | H20: 116560268.7 | I20: 119944841.5 | J20: 121673902.5 | K20: 133192933.3 | L20: 114263776.2 | M20: 101272984.2 | N20: 98671344.85
A21: 1080000 | B21: Accum Prov for Deprec of Plant | C21: 0 | D21: 0 | E21: 0 | F21: 0 | G21: 0 | H21: 0 | I21: 0 | J21: 0 | K21: 0 | L21: 0 | M21: 0 | N21: 0
A22: 1080001 | B22: A/P for Deprec of Plt | C22: -951060382.8 | D22: -955060729.7 | E22: -958448482.8 | F22: -962619125.5 | G22: -966342083.8 | H22: -970963683.2 | I22: -974062007.5 | J22: -978719694.7 | K22: -983189959.5 | L22: -987396922.4 | M22: -988761925.1 | N22: -993444464.1
A23: 1080005 | B23: RWIP - Project Detail | C23: 5984282.509 | D23: 5883859.009 | E23: 6451264.259 | F23: 7390948.949 | G23: 8731315.259 | H23: 8855307.179 | I23: 8606026.839 | J23: 9470400.505 | K23: 8938210.199 | L23: 9385977.079 | M23: 9702961.429 | N23: 9548512.719
A24: 1080011 | B24: Cost of Removal Reserve | C24: -13270330.99 | D24: -14531663 | E24: -16383928.51 | F24: -17621713.1 | G24: -19158652.42 | H24: -18289647.13 | I24: -19197935.78 | J24: -20661112.04 | K24: -21923540.14 | L24: -23474798.27 | M24: -25297879.61 | N24: -25723839.18
A25: 1080013 | B25: ARO Removal Deprec - Accretion | C25: 2850069.33 | D25: 2871191.77 | E25: 2892265.21 | F25: 2913011.33 | G25: 2933699.32 | H25: 2954215.91 | I25: 2974159.11 | J25: 2994947.19 | K25: 3015658.9 | L25: 3036349.2 | M25: 3056882.55 | N25: 3077354.25
A26: 1110001 | B26: A/P for Amort of Plt | C26: -17763547.4 | D26: -18290075.14 | E26: -18088146.46 | F26: -18562169.17 | G26: -19045618.73 | H26: -18652426.88 | I26: -19152936.59 | J26: -19663782.5 | K26: -19327130.38 | L26: -19855796.07 | M26: -20396234.11 | N26: -19623755.87
A27: 1110007 | B27: Cloud Implement - A/P Amrt Plt | C27: 0 | D27: 0 | E27: 0 | F27: 0 | G27: 0 | H27: 0 | I27: 0 | J27: 0 | K27: 0 | L27: 0 | M27: 0 | N27: 0
A28: 1210001 | B28: Nonutility Property - Owned | C28: 6670697.79 | D28: 6670697.79 | E28: 6670697.79 | F28: 6670697.79 | G28: 6670697.79 | H28: 6670697.79 | I28: 6670697.79 | J28: 6670697.79 | K28: 6670697.79 | L28: 6670697.79 | M28: 6670697.79 | N28: 6670697.79
A29: 1220001 | B29: Depr&Amrt of Nonutl Prop-Ownd | C29: -248860.16 | D29: -249415.97 | E29: -249971.78 | F29: -250527.59 | G29: -251083.4 | H29: -251639.21 | I29: -252195.02 | J29: -252750.83 | K29: -253306.64 | L29: -253862.45 | M29: -254418.26 | N29: -254974.07
A30: 1220003 | B30: Depr&Amrt of Nonutl Prop-WIP | C30: 10285.67 | D30: 11901.68 | E30: -3303.47 | F30: -3303.47 | G30: -2310.81 | H30: -1425.88 | I30: 102.52 | J30: 1869.79 | K30: 2798.02 | L30: 27875.65 | M30: 28905.61 | N30: 30141.34
A31: 1240002 | B31: Oth Investments-Nonassociated | C31: 806 | D31: 806 | E31: 806 | F31: 806 | G31: 806 | H31: 806 | I31: 806 | J31: 806 | K31: 806 | L31: 806 | M31: 806 | N31: 806
A32: 1240005 | B32: Spec Allowance Inv NOx | C32: 8299.4 | D32: 8299.4 | E32: 8299.4 | F32: 8299.4 | G32: 8299.4 | H32: 8299.4 | I32: 8299.4 | J32: 8299.4 | K32: 8299.4 | L32: 8299.4 | M32: 8299.4 | N32: 8299.4
A33: 1240007 | B33: Deferred Compensation Benefits | C33: 27930.06 | D33: 27930.06 | E33: 27930.06 | F33: 27930.06 | G33: 27930.06 | H33: 27930.06 | I33: 27930.06 | J33: 27930.06 | K33: 27930.06 | L33: 27930.06 | M33: 27930.06 | N33: 28847.93
A34: 1240027 | B34: Other Property - RWIP | C34: 0 | D34: 0 | E34: 0 | F34: 0 | G34: 0 | H34: -1000 | I34: 1095.07 | J34: 2493.91 | K34: 4429.42 | L34: 5935.13 | M34: -43051.1 | N34: -42702.97
A35: 1240028 | B35: Other Property - RETIRE | C35: -18.87 | D35: -18.87 | E35: -18.87 | F35: -18.87 | G35: -18.87 | H35: -18.87 | I35: -18.87 | J35: -18.87 | K35: -18.87 | L35: -18.87 | M35: -18.87 | N35: -18.87
A36: 1240029 | B36: Other Property - CPR | C36: 1790332.73 | D36: 1790332.73 | E36: 1790332.73 | F36: 1790332.73 | G36: 1790332.73 | H36: 1790332.73 | I36: 1790332.73 | J36: 1790332.73 | K36: 1790332.73 | L36: 1790332.73 | M36: 1790332.73 | N36: 1790332.73
A37: 1240092 | B37: Fbr Opt Lns-In Kind Sv-Invest | C37: 113459 | D37: 112436 | E37: 111413 | F37: 110390 | G37: 109367 | H37: 108344 | I37: 107321 | J37: 106298 | K37: 105275 | L37: 104252 | M37: 103229 | N37: 102206
A38: 1290000 | B38: Pension Net Funded Position | C38: 323878.61 | D38: 323878.61 | E38: 828699.86 | F38: 828699.86 | G38: 828699.86 | H38: 1333521.11 | I38: 1333521.11 | J38: 1333521.11 | K38: 1838342.36 | L38: 1838342.36 | M38: 1838342.36 | N38: 0
A39: 1290001 | B39: Non-UMWA PRW Funded Position | C39: 15495013.63 | D39: 15495013.63 | E39: 15102189.13 | F39: 15102189.13 | G39: 15102189.13 | H39: 14709364.63 | I39: 14709364.63 | J39: 14709364.63 | K39: 14316540.13 | L39: 14316540.13 | M39: 14316540.13 | N39: 23421499.13
A40: 1290002 | B40: SFAS 106 - Non-UMWA PRW | C40: 258244.43 | D40: 516363.93 | E40: 773634.2 | F40: 1019771.42 | G40: 1277718.28 | H40: 1535478.92 | I40: 1793383.15 | J40: 2051266.01 | K40: 2309015.93 | L40: 2566975.99 | M40: 2824865.23 | N40: 0
A41: 1290003 | B41: SFAS 87 - Pension | C41: -101203.25 | D41: -202406.5 | E41: -310302 | F41: -413736 | G41: -517170 | H41: -620604 | I41: -724038 | J41: -827472 | K41: -930906 | L41: -1034340 | M41: -1137774 | N41: 0
A42: 1310000 | B42: Cash | C42: 625009.63 | D42: 1167998.32 | E42: 747269.62 | F42: 515938.76 | G42: 700806.89 | H42: 591124.58 | I42: 530814.07 | J42: 861632.23 | K42: 962150.16 | L42: 551209.94 | M42: 626168.73 | N42: 848841.59
A43: 1340018 | B43: Spec Deposits - Elect Trading | C43: 238298.042 | D43: 522418.772 | E43: 821379.482 | F43: 521710.552 | G43: 48170.182 | H43: 90.192 | I43: 91.132 | J43: 487785.652 | K43: 23.622 | L43: 23.622 | M43: 23.622 | N43: 266.802
A44: 1340048 | B44: Spec Deposits-Trading Contra | C44: 509598 | D44: 0 | E44: 197323.27 | F44: 156708.99 | G44: -445685.65 | H44: -546777.332 | I44: -353031.6 | J44: -457533.6 | K44: -288578.5 | L44: -297714.23 | M44: -67289.85 | N44: -21626.33
A45: 1340050 | B45: Spec Deposit Mizuho Securities | C45: 282341.28 | D45: 417647.25 | E45: 1002643.95 | F45: 608151.48 | G45: 677168.92 | H45: 692198.54 | I45: 604583.22 | J45: 526443.45 | K45: 346837.77 | L45: 824309.37 | M45: 170165.4 | N45: 88662.55
A46: 1340051 | B46: Spec Depost RBC | C46: 319131.6 | D46: 23538.17 | E46: 1141753.3 | F46: 103404.33 | G46: 211690.17 | H46: 226413.14 | I46: 195304.87 | J46: 312558.17 | K46: 326615.18 | L46: 282459.89 | M46: 251539.83 | N46: 404305.11
A47: 1340053 | B47: Deposits - Flexible Spending | C47: 34901.2 | D47: 34901.2 | E47: 34901.2 | F47: 34901.2 | G47: 30267.27 | H47: 30267.27 | I47: 17597.33 | J47: 17597.33 | K47: 17597.33 | L47: 17597.33 | M47: 17597.33 | N47: 17597.33
A48: 1340055 | B48: Spec Dep Affil - Elect Trading | C48: 0 | D48: 0 | E48: 282900 | F48: 0 | G48: 0 | H48: 0 | I48: 0 | J48: 0 | K48: 0 | L48: 634010 | M48: 0 | N48: 0
A49: 1340057 | B49: Wells Fargo Securities, LLC | C49: 290532.14 | D49: 382759.38 | E49: 470108 | F49: 252401.72 | G49: 481276.66 | H49: 525795.95 | I49: 638302.42 | J49: 587304.42 | K49: 468248.84 | L49: 2783444.03 | M49: 318992.89 | N49: 128846.08
A50: 1420001 | B50: Customer A/R - Electric | C50: 44797733.31 | D50: 44096074.49 | E50: 42294668.54 | F50: 35044192.26 | G50: 33765934.85 | H50: 35837574.88 | I50: 36551778.2 | J50: 34965946.31 | K50: 35127849.32 | L50: 29202741.11 | M50: 30382981.79 | N50: 36851505
A51: 1420014 | B51: Customer A/R-System Sales | C51: 739083.16 | D51: 609544.65 | E51: 663950.62 | F51: 511708.47 | G51: 535156.39 | H51: 358530.21 | I51: 630877.7 | J51: 598288.08 | K51: 548527.91 | L51: 526883.33 | M51: 586458.3 | N51: 625416.11
A52: 1420019 | B52: Transmission Sales Receivable | C52: 6106.5 | D52: 4629 | E52: 9651 | F52: 8530.5 | G52: 3982.5 | H52: 7983 | I52: 5097 | J52: 10063.5 | K52: 4437 | L52: 3807 | M52: 8782.5 | N52: 5302.5
A53: 1420022 | B53: Cust A/R - Factored | C53: -40712084.44 | D53: -38109558.34 | E53: -36011105.1 | F53: -28666716.12 | G53: -28336711.12 | H53: -27779434.65 | I53: -32911532.12 | J53: -31921812.11 | K53: -31027902.43 | L53: -26821630.1 | M53: -25421679.36 | N53: -30393931.26
A54: 1420023 | B54: Cust A/R-System Sales - MLR | C54: 655729.965 | D54: 574882.255 | E54: 718774.765 | F54: 495755.665 | G54: 478630.925 | H54: 1044699.205 | I54: 1559187.745 | J54: 1418605.665 | K54: 1168983.675 | L54: 1428438.045 | M54: 1077753.335 | N54: 1104600.995
A55: 1420024 | B55: Cust A/R-Options & Swaps - MLR | C55: 0 | D55: 0 | E55: 0 | F55: 0 | G55: 0 | H55: 0 | I55: 0 | J55: 0 | K55: 0 | L55: 0 | M55: 0 | N55: 0
A56: 1420027 | B56: Low Inc Energy Asst Pr (LIEAP) | C56: 53787 | D56: 49604 | E56: 5947 | F56: 4498 | G56: 3840 | H56: 2258 | I56: 2258 | J56: 0 | K56: 0 | L56: 0 | M56: 578946 | N56: 364926
A57: 1420028 | B57: Emergency LIEAP | C57: 664216.5 | D57: 504779.19 | E57: 490058.19 | F57: 194855.58 | G57: 74551.97 | H57: 18849.58 | I57: 0 | J57: 0 | K57: 0 | L57: 0 | M57: 0 | N57: 0
A58: 1420042 | B58: Cust A/R - Special Contracts | C58: 51883.4 | D58: 4192.32 | E58: 2852.21 | F58: 381.71 | G58: 3956.56 | H58: -48635.61 | I58: 719.01 | J58: -0.01 | K58: 84.22 | L58: -0.01 | M58: -0.01 | N58: 8909.18
A59: 1420044 | B59: Customer A/R - Estimated | C59: 279027 | D59: 488218 | E59: 609712 | F59: 1218929 | G59: 99211 | H59: 114593 | I59: 647247 | J59: 19266 | K59: 375323 | L59: 270144 | M59: 147108 | N59: 1009326
A60: 1420048 | B60: Emission Allowance Trading | C60: 13750 | D60: 28750 | E60: 13750 | F60: 13750 | G60: 13750 | H60: 13750 | I60: -38470 | J60: 43000 | K60: 17000 | L60: 17000 | M60: 43000 | N60: 0
A61: 1420050 | B61: PJM AR Accrual | C61: 1873824.61 | D61: 1411658.5 | E61: 262737.05 | F61: 0 | G61: 1835963.74 | H61: 661075.14 | I61: 1915186.89 | J61: 80177.98 | K61: 984893.47 | L61: 0.01 | M61: 0.01 | N61: 0.01
A62: 1420054 | B62: Accrued Power Brokers | C62: 405658.21 | D62: 563344.3 | E62: 70661.29 | F62: 158217.05 | G62: 167589.24 | H62: 85939.11 | I62: 147245.42 | J62: 235620.13 | K62: 5417.8 | L62: 0 | M62: 0 | N62: 274836.98
A63: 1420058 | B63: Cust A/R-Contra-Home Warranty | C63: -81275.5 | D63: -82880.44 | E63: -81679.87 | F63: -81427.89 | G63: -85789.44 | H63: -85865.41 | I63: -87789.13 | J63: -96483.4 | K63: -93478.45 | L63: -101350.37 | M63: -103355.06 | N63: -91194.21
A64: 1420059 | B64: AR PS Bill-Cust Home Warranty | C64: 14629.54 | D64: 14918.42 | E64: 14702.32 | F64: 14656.96 | G64: 15442.04 | H64: 15455.71 | I64: 15801.97 | J64: 17366.94 | K64: 16826.05 | L64: 18243 | M64: 18603.85 | N64: 16414.89
A65: 1420060 | B65: PJM Trans Enhancement Refund | C65: 4831653.04 | D65: 4081899.23 | E65: 3332145.42 | F65: 2582391.61 | G65: 1832637.8 | H65: 1082883.99 | I65: 1009281.88 | J65: 935679.77 | K65: 862077.66 | L65: 788475.55 | M65: 714873.44 | N65: 641271.33
A66: 1420102 | B66: AR Peoplesoft Billing - Cust | C66: 996688.31 | D66: 2648795.76 | E66: 2580570.83 | F66: 1737461.12 | G66: 1331137.25 | H66: 1621829.89 | I66: 1459922.16 | J66: 4256587.21 | K66: 4117871.67 | L66: 1470665.82 | M66: 1066142.69 | N66: 1306872.1
A67: 1420103 | B67: AR Long-Term-Customer | C67: 3883488.77 | D67: 3830049.49 | E67: 3776610.21 | F67: 3723170.9 | G67: 3669731.62 | H67: 3616292.34 | I67: 3562853.06 | J67: 3509413.78 | K67: 3455974.5 | L67: 3402535.22 | M67: 3349095.94 | N67: 3295656.66
A68: 1430002 | B68: Allowances | C68: 57.25 | D68: 57.25 | E68: 183.23 | F68: 95.94 | G68: 68.27 | H68: 68.27 | I68: 68.27 | J68: 84.94 | K68: 199.9 | L68: 84.94 | M68: 84.94 | N68: 0
A69: 1430022 | B69: 2001 Employee Biweekly Pay Cnv | C69: 44745.29 | D69: 45901.1 | E69: 42027.88 | F69: 42027.88 | G69: 41066.27 | H69: 41066.27 | I69: 41066.27 | J69: 41066.27 | K69: 39835.46 | L69: 38381.57 | M69: 38381.57 | N69: 37804.49
A70: 1430023 | B70: A/R PeopleSoft Billing System | C70: 0 | D70: 0 | E70: 0 | F70: 0 | G70: 0 | H70: 0 | I70: 0 | J70: 0 | K70: 0 | L70: 0 | M70: 0 | N70: 0
A71: 1430081 | B71: Damage Recovery - Third Party | C71: 1207 | D71: 25723.58 | E71: 34839.58 | F71: 17924.25 | G71: 16712.04 | H71: 8595.92 | I71: 3764.92 | J71: 16867 | K71: 14557 | L71: 5581 | M71: 5447 | N71: 5447
A72: 1430083 | B72: Damage Recovery Offset Demand | C72: -1976.002 | D72: -34715.002 | E72: -34839.58 | F72: -22638.002 | G72: -24062.002 | H72: -8595.92 | I72: -12235.002 | J72: -17636.002 | K72: -14557 | L72: -6350.002 | M72: -10131.002 | N72: -5447
A73: 1430101 | B73: Other Accounts Rec - Misc | C73: 0 | D73: 0 | E73: 0 | F73: 0 | G73: 102150 | H73: 102150 | I73: 102150 | J73: 0 | K73: 0 | L73: 0 | M73: 0 | N73: 0
A74: 1430102 | B74: AR Peoplesoft Billing - Misc | C74: 16958.79 | D74: 61494.38 | E74: 170396.07 | F74: 172513.97 | G74: 170478.42 | H74: 84154.74 | I74: 32850.04 | J74: 29320.46 | K74: 36214.22 | L74: 17812.69 | M74: 14603.38 | N74: 107431.58
A75: 1440002 | B75: Uncoll Accts-Other Receivables | C75: -84067.14 | D75: -163988.24 | E75: -126723.47 | F75: -117195.54 | G75: -175762.9 | H75: -225908.23 | I75: -505655.77 | J75: -401609.46 | K75: -459092.41 | L75: -400107.1 | M75: -345151.37 | N75: -345516.37
A76: 1460001 | B76: A/R Assoc Co - InterUnit G/L | C76: 23686368.42 | D76: 19589588.76 | E76: 22013393.57 | F76: 21465987.56 | G76: 30828236.99 | H76: 20436316.51 | I76: 23046889.62 | J76: 19929188.37 | K76: 17865251.33 | L76: 25056821.56 | M76: 23269959.39 | N76: 17650222.29
A77: 1460006 | B77: A/R Assoc Co - Intercompany | C77: 106670.42 | D77: 134974.71 | E77: 208514.32 | F77: 153220.92 | G77: 170303.38 | H77: 228214.85 | I77: 201499.94 | J77: 176149.56 | K77: 201640.74 | L77: 183492.76 | M77: 218213.97 | N77: 1070073.64
A78: 1460009 | B78: A/R Assoc Co - InterUnit A/P | C78: 0.02 | D78: 82.71 | E78: 38.91 | F78: 1655.82 | G78: 0.02 | H78: 0.02 | I78: 14061.78 | J78: 0.02 | K78: 67.57 | L78: 664.45 | M78: 0.02 | N78: 148.02
A79: 1460011 | B79: A/R Assoc Co - Multi Pmts | C79: 1071458.14 | D79: 1130809.29 | E79: 787162.79 | F79: 2288961.35 | G79: 332215.23 | H79: 648978.88 | I79: 1386248.69 | J79: 754841.4 | K79: 1752815.82 | L79: 527855.06 | M79: 0 | N79: 1046504.56
A80: 1460025 | B80: Fleet - M4 - A/R | C80: 142243.16 | D80: 91102.05 | E80: 201725.59 | F80: 114611.66 | G80: 145287.45 | H80: 127932.11 | I80: 148547.27 | J80: 99985.52 | K80: 72354.07 | L80: 151660.94 | M80: -87122.18 | N80: 63440.25
A81: 1510001 | B81: Fuel Stock - Coal | C81: 7624679.89 | D81: 11520967.41 | E81: 10153639.43 | F81: 13062894.36 | G81: 15863134.17 | H81: 20378839.84 | I81: 19983985.57 | J81: 20768431.99 | K81: 20166781.16 | L81: 23652328.45 | M81: 26961984.65 | N81: 27731314.95
A82: 1510002 | B82: Fuel Stock - Oil | C82: 964315.77 | D82: 857152.49 | E82: 946794.78 | F82: 804511.67 | G82: 935880.1 | H82: 697706.84 | I82: 640658.72 | J82: 745583.98 | K82: 578944.01 | L82: 696222.96 | M82: 718200.73 | N82: 712934.55
A83: 1510003 | B83: Fuel Stock - Gas | C83: 1093586.12 | D83: 1037254.68 | E83: 90661.97 | F83: 6856.87 | G83: -12207.2 | H83: 0.11 | I83: 30069.39 | J83: -65956.26 | K83: 0 | L83: -6031.19 | M83: 88694.21 | N83: 0
A84: 1510020 | B84: Fuel Stock Coal - Intransit | C84: 1372362.49 | D84: 796800.79 | E84: 2383977.18 | F84: 1372337.76 | G84: 707460.25 | H84: 523409.36 | I84: 905837.95 | J84: 92459.45 | K84: 657840.45 | L84: 609813.18 | M84: 483287.91 | N84: 0.01
A85: 1520000 | B85: Fuel Stock Exp Undistributed | C85: 331768.154 | D85: 458690.264 | E85: 445611.174 | F85: 586391.954 | G85: 625459.794 | H85: 706095.524 | I85: 717627.254 | J85: 819997.824 | K85: 768151.014 | L85: 860729.224 | M85: 1013534.524 | N85: 1410787.824
A86: 1540001 | B86: M&S - Regular | C86: 14021119.43 | D86: 14291025.97 | E86: 14248256.92 | F86: 14178519.19 | G86: 13873827.6 | H86: 14095031.81 | I86: 14158538.27 | J86: 14619562.71 | K86: 14528382.86 | L86: 14492626.16 | M86: 14490101.95 | N86: 14427169.86
A87: 1540003 | B87: Material in Transit | C87: 0 | D87: 0 | E87: 0 | F87: 0 | G87: 0 | H87: 0 | I87: 0 | J87: 35020.63 | K87: 66572.63 | L87: 22796.15 | M87: 41184.58 | N87: 19522.54
A88: 1540004 | B88: M&S - Exempt Material | C88: 91482.467 | D88: 91472.897 | E88: 85465.617 | F88: 88378.777 | G88: 88086.097 | H88: 88404.397 | I88: 88307.647 | J88: 87344.687 | K88: 85024.227 | L88: 90753.467 | M88: 86985.367 | N88: 86878.077
A89: 1540006 | B89: M&S - Lime and Limestone | C89: 1741067.55 | D89: 1460438.29 | E89: 1508447.53 | F89: 1560942.63 | G89: 1315473.52 | H89: 1209367.77 | I89: 1196689.34 | J89: 1505994.04 | K89: 1517363.87 | L89: 1955673.78 | M89: 1946039.6 | N89: 2085134.1
A90: 1540012 | B90: Materials & Supplies - Urea | C90: 151910.75 | D90: 60221.65 | E90: 192806.86 | F90: 173098.3 | G90: 131021.19 | H90: 75372.43 | I90: 175238.88 | J90: 74755.67 | K90: 197250.39 | L90: 342289.13 | M90: 326423.09 | N90: 326423.09
A91: 1540013 | B91: Transportation Inventory | C91: 253708.59 | D91: 253708.59 | E91: 253708.59 | F91: 253708.59 | G91: 253708.59 | H91: 253708.59 | I91: 253708.59 | J91: 253708.59 | K91: 253708.59 | L91: 321070 | M91: 321070 | N91: 321070
A92: 1540014 | B92: Indus Direct Charge Clearing | C92: 0 | D92: 0 | E92: 0 | F92: 0 | G92: 0 | H92: 0 | I92: 0 | J92: 0 | K92: 0 | L92: 0 | M92: 0 | N92: 0
A93: 1540016 | B93: MMS - Truck Stock | C93: 0 | D93: 0 | E93: 0 | F93: 0 | G93: 0 | H93: 0 | I93: 0 | J93: 0 | K93: 0 | L93: 0 | M93: 0 | N93: 0
A94: 1540022 | B94: M&S-Lime & Limestone Intransit | C94: 0 | D94: 0 | E94: 0 | F94: 0 | G94: 126561.06 | H94: 0 | I94: 0 | J94: 161281.13 | K94: 238204.47 | L94: 0 | M94: 19409.94 | N94: 101204.86
A95: 1540023 | B95: M&S Inv - Urea In-Transit | C95: 396881.83 | D95: 396881.57 | E95: 187032.08 | F95: 372792.37 | G95: 556664.88 | H95: 556664.88 | I95: 552301.4 | J95: 552301.4 | K95: 368428.89 | L95: 182668.6 | M95: 347638.03 | N95: 347638.03
A96: 1581000 | B96: SO2 Allowance Inventory | C96: 0 | D96: 0 | E96: 8533604.3 | F96: 0 | G96: 0 | H96: 8488682.43 | I96: 0 | J96: 0 | K96: 8407510.71 | L96: 8407510.71 | M96: 8407510.71 | N96: 8399493.35
A97: 1581003 | B97: SO2 Allowance Inventory - Curr | C97: 8820829.25 | D97: 8805070.61 | E97: 263515.53 | F97: 8782816.09 | G97: 8768827.88 | H97: 270627.15 | I97: 8731227.95 | J97: 8715872.46 | K97: 289903.6 | L97: 277230.06 | M97: 264609.1 | N97: 270680.73
A98: 1581009 | B98: CSAPR Current SO2 Inv | C98: 26656.75 | D98: 26489.64 | E98: 26372.12 | F98: 26222.05 | G98: 26075.3 | H98: 25975.44 | I98: 25680.82 | J98: 25519.72 | K98: 25326.06 | L98: 25193.1 | M98: 25060.69 | N98: 25040.27
A99: 1630004 | B99: Strs Exp-T&D Satellite Storerm | C99: 0 | D99: 0 | E99: 0 | F99: 0 | G99: 0 | H99: 0 | I99: 0 | J99: 0 | K99: 0 | L99: 0 | M99: 0 | N99: 0
A100: 1630019 | B100: Stores Exp - Big Sandy Plant | C100: -0.005 | D100: -0.005 | E100: 0 | F100: 0 | G100: 0 | H100: 0 | I100: 0 | J100: 0 | K100: 0 | L100: 0 | M100: 0 | N100: 0
A101: 1630023 | B101: Stores Exp - Mitchell Plant | C101: 0 | D101: 0 | E101: 0 | F101: 0 | G101: 0 | H101: 0 | I101: 0 | J101: 0 | K101: 0 | L101: 0 | M101: 0 | N101: 0
A102: 1630032 | B102: Stores Exp - Power Gen General | C102: 0 | D102: 0 | E102: 0 | F102: 0 | G102: 0 | H102: 0 | I102: 0 | J102: 0 | K102: 0 | L102: 0 | M102: 0 | N102: 0
A103: 1630033 | B103: Stores Exp - All Busin Units | C103: 0 | D103: 0 | E103: 0 | F103: 0 | G103: 0 | H103: 0 | I103: 0 | J103: 0 | K103: 0 | L103: 0 | M103: 0 | N103: 0
A104: 1630109 | B104: Strs Exp - ACCT-COUNT-ADJ | C104: 0 | D104: 0 | E104: 0 | F104: 0 | G104: 0 | H104: 0 | I104: 0 | J104: 0 | K104: 0 | L104: 0 | M104: 0 | N104: 0
A105: 1650001 | B105: Prepaid Insurance | C105: 341287.04 | D105: 275238.6 | E105: 209190.16 | F105: 143141.78 | G105: 198146.05 | H105: 420033.68 | I105: 898546.21 | J105: 799501.44 | K105: 709859.53 | L105: 665334.03 | M105: 575371.92 | N105: 538065.09
A106: 165000218 | B106: Prepaid Taxes | C106: 489657.65 | D106: 391726.1 | E106: 293794.55 | F106: 195863 | G106: 97931.45 | H106: 0 | I106: 0 | J106: 0 | K106: 0 | L106: 0 | M106: 0 | N106: 0
A107: 165000219 | B107: Prepaid Taxes | C107: 0 | D107: 0 | E107: 0 | F107: 0 | G107: 0 | H107: 1196916.91 | I107: 1097173.83 | J107: 997430.75 | K107: 897687.67 | L107: 797944.59 | M107: 698201.51 | N107: 598458.43
A108: 1650005 | B108: Prepaid Employee Benefits | C108: 320313.48 | D108: 0 | E108: 0 | F108: 0 | G108: 0 | H108: 0 | I108: 0 | J108: 0 | K108: 0 | L108: 0 | M108: 0 | N108: 0
A109: 1650006 | B109: Other Prepayments | C109: 282957.58 | D109: 257234.16 | E109: 231510.74 | F109: 205787.32 | G109: 180063.9 | H109: 154340.48 | I109: 128617.06 | J109: 102893.64 | K109: 77170.22 | L109: 51446.8 | M109: 25723.38 | N109: 150000
A110: 1650009 | B110: Prepaid Carry Cost-Factored AR | C110: 75304.6 | D110: 49591.06 | E110: 44903.9 | F110: 43446.89 | G110: 47030.71 | H110: -10476.92 | I110: 130450.65 | J110: 164198.39 | K110: 34762.12 | L110: 39208.12 | M110: 18910.58 | N110: 38597.92
A111: 1650010 | B111: Prepaid Pension Benefits | C111: 46640110.36 | D111: 46538907.11 | E111: 46431011.61 | F111: 46327577.61 | G111: 46224143.61 | H111: 46120709.61 | I111: 46017275.61 | J111: 45913841.61 | K111: 45810407.61 | L111: 45706973.61 | M111: 45603539.61 | N111: 45500105.61
A112: 165001118 | B112: Prepaid Sales Taxes | C112: 0 | D112: 0 | E112: 0 | F112: 0 | G112: 0 | H112: 0 | I112: 0 | J112: 0 | K112: 0 | L112: 0 | M112: 0 | N112: 0
A113: 165001119 | B113: Prepaid Sales Taxes | C113: 382996 | D113: 416761 | E113: 374285 | F113: 349151 | G113: 317376 | H113: 327930 | I113: 352100 | J113: 373148 | K113: 379726 | L113: 348391 | M113: 347095 | N113: 269801
A114: 165001120 | B114: Prepaid Sales Taxes | C114: 0 | D114: 0 | E114: 0 | F114: 0 | G114: 0 | H114: 0 | I114: 0 | J114: 0 | K114: 0 | L114: 0 | M114: 0 | N114: 0
A115: 165001218 | B115: Prepaid Use Taxes | C115: 0 | D115: 0 | E115: 0 | F115: 0 | G115: 0 | H115: 0 | I115: 0 | J115: 0 | K115: 0 | L115: 0 | M115: 0 | N115: 0
A116: 165001219 | B116: Prepaid Use Taxes | C116: 67276 | D116: 46665 | E116: 46277 | F116: 89097 | G116: 63712 | H116: 74328 | I116: 36161 | J116: 55277 | K116: 30981 | L116: 49961 | M116: 39771 | N116: 42886
A117: 165001220 | B117: Prepaid Use Taxes | C117: 0 | D117: 0 | E117: 0 | F117: 0 | G117: 0 | H117: 0 | I117: 0 | J117: 0 | K117: 0 | L117: 0 | M117: 0 | N117: 0
A118: 1650014 | B118: FAS 158 Qual Contra Asset | C118: -46640110.36 | D118: -46538907.11 | E118: -46431011.61 | F118: -46327577.61 | G118: -46224143.61 | H118: -46120709.61 | I118: -46017275.61 | J118: -45913841.61 | K118: -45810407.61 | L118: -45706973.61 | M118: -45603539.61 | N118: -45500105.61
A119: 1650021 | B119: Prepaid Insurance - EIS | C119: 369105.223 | D119: 261349.453 | E119: 703166.793 | F119: 591724.463 | G119: 480282.133 | H119: 368839.743 | I119: 1092950.603 | J119: 976825.993 | K119: 860701.383 | L119: 744576.773 | M119: 628452.163 | N119: 512327.553
A120: 1650023 | B120: Prepaid Lease | C120: 36000 | D120: 36000 | E120: 36000 | F120: 36000 | G120: 36000 | H120: 36000 | I120: 36000 | J120: 36000 | K120: 36000 | L120: 36000 | M120: 36000 | N120: 36000
A121: 1650035 | B121: PRW Without MED-D Benefits | C121: 16318746.06 | D121: 16576920.36 | E121: 16834135.83 | F121: 17080273.05 | G121: 17338219.91 | H121: 17595980.55 | I121: 17853884.78 | J121: 18111767.64 | K121: 18369517.56 | L121: 18627477.62 | M121: 18885366.86 | N121: 19143276.13
A122: 1650037 | B122: FAS158 Contra-PRW Exclud Med-D | C122: -16318746.06 | D122: -16576865.56 | E122: -16834135.83 | F122: -17080273.05 | G122: -17338219.91 | H122: -17595980.55 | I122: -17853884.78 | J122: -18111767.64 | K122: -18369517.56 | L122: -18627477.62 | M122: -18885366.86 | N122: -19143276.13
A123: 1720000 | B123: Rents Receivable | C123: 3486425.34 | D123: 3756236.9 | E123: 4026048.46 | F123: 4295860.02 | G123: 4538999.42 | H123: 4309408.39 | I123: 4543875.15 | J123: 2051992.95 | K123: 2295153.06 | L123: 2538313.17 | M123: 2781473.28 | N123: 3024633.4
A124: 1730000 | B124: Accrued Utility Revenues | C124: 20154216.23 | D124: 10621870.82 | E124: 16362619.4 | F124: 12059648.2 | G124: 17334235.03 | H124: 18472950.95 | I124: 21854688.34 | J124: 22862236.94 | K124: 19400050.72 | L124: 18708869.13 | M124: 25736519.81 | N124: 24783696.31
A125: 1730002 | B125: Acrd Utility Rev-Factored-Assc | C125: -11352550.09 | D125: -10143697.27 | E125: -7753642.66 | F125: -7934539.95 | G125: -8797905.03 | H125: -8727475.92 | I125: -8632270.42 | J125: -7845507.82 | K125: -6006881.82 | L125: -11997293.26 | M125: -12368555.05 | N125: -11234128.95
A126: 174001116 | B126: Non-Highway Fuel Tax Credit | C126: 0 | D126: 0 | E126: 0 | F126: 0 | G126: 0 | H126: 0 | I126: 0 | J126: 0 | K126: 0 | L126: 0 | M126: 0 | N126: 0
A127: 1750001 | B127: Curr. Unreal Gains - NonAffil | C127: 5063489.48 | D127: 2885327.23 | E127: 1660251.89 | F127: 2811953.44 | G127: 2422103.42 | H127: 14776637.29 | I127: 14529517.87 | J127: 14016081.22 | K127: 10090352.79 | L127: 10717479.07 | M127: 10139125.33 | N127: 6997725.19
A128: 1750002 | B128: Long-Term Unreal Gns - Non Aff | C128: 132461.24 | D128: 91235.46 | E128: 100340.76 | F128: 116245.94 | G128: 54157.87 | H128: 72125.67 | I128: 57403.02 | J128: 47703.29 | K128: 30523.12 | L128: 151661.81 | M128: 6701.62 | N128: 33730.01
A129: 1750021 | B129: S/T Asset MTM Collateral | C129: -417585 | D129: 0 | E129: -323018.81 | F129: -348629 | G129: -42715 | H129: -83249 | I129: -188194 | J129: 0 | K129: 0 | L129: 0 | M129: -57613.6 | N129: -119919.87
A130: 1750022 | B130: L/T Asset MTM Collateral | C130: -92013 | D130: 0 | E130: -75694.43 | F130: -46602 | G130: -6222 | H130: -5030 | I130: -5160 | J130: 0 | K130: 0 | L130: 0 | M130: -776.38 | N130: -8909.55
A131: 1810002 | B131: Unamort Debt Exp - Inst Pur Cn | C131: 74296.08 | D131: 69652.57 | E131: 65009.07 | F131: 60365.56 | G131: 55722.06 | H131: 51078.55 | I131: 46435.05 | J131: 41791.54 | K131: 37148.04 | L131: 32504.53 | M131: 27861.03 | N131: 23217.52
A132: 1810003 | B132: Unamort Debt Exp Notes Payable | C132: 460797.62 | D132: 450324.95 | E132: 439852.28 | F132: 429379.61 | G132: 418906.94 | H132: 408434.27 | I132: 397961.6 | J132: 387488.93 | K132: 377016.26 | L132: 366543.58 | M132: 356070.91 | N132: 345598.23
A133: 1810006 | B133: Unamort Debt Exp - Sr Unsec Nt | C133: 2301459.71 | D133: 2281082.59 | E133: 2261203.43 | F133: 2240824.25 | G133: 2220445.09 | H133: 2200065.91 | I133: 2180178.12 | J133: 2159790.32 | K133: 2139402.53 | L133: 2119014.73 | M133: 2098626.93 | N133: 2078239.12
A134: 1823000 | B134: Other Regulatory Assets | C134: 37550.04 | D134: 26762.44 | E134: 24086.16 | F134: 21409.88 | G134: 18733.6 | H134: 31472.32 | I134: 232181.04 | J134: 229504.76 | K134: 226828.48 | L134: 224152.2 | M134: 221475.92 | N134: 21711.87
A135: 1823007 | B135: SFAS 112 Postemployment Benef | C135: 2809366.33 | D135: 2809366.33 | E135: 3169205.33 | F135: 3169205.33 | G135: 3169205.33 | H135: 3169205.33 | I135: 3169205.33 | J135: 3169205.33 | K135: 3169205.33 | L135: 3169205.33 | M135: 3169205.33 | N135: 3169205.33
A136: 1823009 | B136: DSM Incentives | C136: 4511361 | D136: 4511652 | E136: 4511943 | F136: 4512234 | G136: 4512525 | H136: 4512816 | I136: 4513107 | J136: 4513398 | K136: 4513689 | L136: 4513980 | M136: 4512870 | N136: 4513161
A137: 1823010 | B137: Energy Efficiency Recovery | C137: -62764411.81 | D137: -62797878.98 | E137: -62836273.61 | F137: -62877712.03 | G137: -62933541.26 | H137: -62986523.9 | I137: -63050304.49 | J137: -63107945.09 | K137: -63175328.04 | L137: -63216048.84 | M137: -63255928.01 | N137: -63293871.3
A138: 1823011 | B138: DSM Lost Revenues | C138: 15665625 | D138: 15689192 | E138: 15712759 | F138: 15736326 | G138: 15759893 | H138: 15783460 | I138: 15807027 | J138: 15830594 | K138: 15854161 | L138: 15877728 | M138: 15914983 | N138: 15938550
A139: 1823012 | B139: DSM Program Costs | C139: 42587425.81 | D139: 42597034.98 | E139: 42611571.61 | F139: 42629152.03 | G139: 42661123.26 | H139: 42690247.9 | I139: 42730170.49 | J139: 42763953.09 | K139: 42807478.04 | L139: 42824340.84 | M139: 42828075.01 | N139: 42842160.3
A140: 1823022 | B140: HRJ 765kV Post Service AFUDC | C140: 462408 | D140: 459624 | E140: 456840 | F140: 454056 | G140: 451272 | H140: 448488 | I140: 445704 | J140: 442920 | K140: 440136 | L140: 437352 | M140: 434568 | N140: 431784
A141: 1823054 | B141: HRJ 765kV Depreciation Expense | C141: 72047 | D141: 71613 | E141: 71179 | F141: 70745 | G141: 70311 | H141: 69877 | I141: 69443 | J141: 69009 | K141: 68575 | L141: 68141 | M141: 67707 | N141: 67273
A142: 1823063 | B142: Unrecovered Fuel Cost | C142: 522673.12 | D142: -968643.88 | E142: 0 | F142: 144443.12 | G142: -482396.88 | H142: 0 | I142: 879311.12 | J142: -1460720.88 | K142: 0 | L142: -141422.88 | M142: 1300348.12 | N142: 0
A143: 1823077 | B143: Unreal Loss on Fwd Commitments | C143: 94117 | D143: 41645 | E143: 33447 | F143: 0 | G143: 83847 | H143: 202081.64 | I143: 38453 | J143: 884073.08 | K143: 836494.71 | L143: 57845 | M143: 39692 | N143: 436773.64
A144: 1823078 | B144: Deferred Storm Expense | C144: 8194016.84 | D144: 8021803.6 | E144: 7849590.36 | F144: 7677377.12 | G144: 7505163.88 | H144: 7332950.64 | I144: 7160737.4 | J144: 6988524.16 | K144: 6816310.92 | L144: 6644097.68 | M144: 6471884.44 | N144: 6299671.2
A145: 1823108 | B145: Reg Asset - Rate Case Expenses | C145: 900649.69 | D145: 862455.25 | E145: 824260.81 | F145: 786066.37 | G145: 747871.93 | H145: 709677.49 | I145: 671483.05 | J145: 633288.61 | K145: 595094.17 | L145: 556899.73 | M145: 518705.29 | N145: 480510.85
A146: 1823115 | B146: Defd Equity Carry Chg-Non Fuel | C146: -11539 | D146: -10490 | E146: -9441 | F146: -8392 | G146: -7343 | H146: -7343 | I146: -5245 | J146: -4196 | K146: -3147 | L146: -2098 | M146: -1049 | N146: 0
A147: 1823118 | B147: BridgeCo TO Funding | C147: 40767.778 | D147: 37180.678 | E147: 33570.238 | F147: 29936.298 | G147: 26278.708 | H147: 26278.708 | I147: 18891.978 | J147: 15162.518 | K147: 11408.798 | L147: 7630.648 | M147: 3827.918 | N147: -0.002
A148: 1823120 | B148: Other PJM Integration | C148: 43070.625 | D148: 39280.845 | E148: 35466.405 | F148: 31627.145 | G148: 27762.905 | H148: 27762.905 | I148: 19958.815 | J148: 16018.645 | K148: 12052.825 | L148: 8061.205 | M148: 4043.605 | N148: 0.005
A149: 1823121 | B149: Carry Chgs-RTO Startup Costs | C149: 26954.42 | D149: 24582.71 | E149: 22195.57 | F149: 19792.9 | G149: 17374.59 | H149: 17374.59 | I149: 12490.65 | J149: 10024.82 | K149: 7542.94 | L149: 5044.91 | M149: 2530.62 | N149: 0
A150: 1823122 | B150: Alliance RTO Deferred Expense | C150: 21337.065 | D150: 19459.615 | E150: 17569.945 | F150: 15667.975 | G150: 13753.635 | H150: 13753.635 | I150: 9887.495 | J150: 7935.535 | K150: 5970.875 | L150: 3993.425 | M150: 2003.105 | N150: -0.005
A151: 1823165 | B151: REG ASSET FAS 158 QUAL PLAN | C151: 45093273 | D151: 45093273 | E151: 44597424.75 | F151: 44597424.75 | G151: 44597424.75 | H151: 44101576.5 | I151: 44101576.5 | J151: 44101576.5 | K151: 43605728.25 | L151: 43605728.25 | M151: 43605728.25 | N151: 45940166
A152: 1823166 | B152: REG ASSET FAS 158 OPEB PLAN | C152: 1621311 | D152: 1621311 | E152: 1993550.88 | F152: 1993550.88 | G152: 1993550.88 | H152: 2365790.76 | I152: 2365790.76 | J152: 2365790.76 | K152: 2738030.64 | L152: 2738030.64 | M152: 2738030.64 | N152: -2107133
A153: 1823167 | B153: REG Asset FAS 158 SERP Plan | C153: -101093 | D153: -101093 | E153: -101374.5 | F153: -101374.5 | G153: -101374.5 | H153: -101656 | I153: -101656 | J153: -101656 | K153: -101937.5 | L153: -101937.5 | M153: -101937.5 | N153: -101171
A154: 1823196 | B154: OSS Margin Sharing | C154: 715025.676 | D154: 599576.016 | E154: 724313.276 | F154: 1020400.926 | G154: 1289938.706 | H154: 1211248.476 | I154: 82633.076 | J154: -0.004 | K154: -0.004 | L154: -0.004 | M154: -0.004 | N154: -0.004
A155: 1823299 | B155: SFAS 106 Medicare Subsidy | C155: 1281667.87 | D155: 1263616.19 | E155: 1245564.51 | F155: 1227512.83 | G155: 1209461.15 | H155: 1191409.47 | I155: 1173357.79 | J155: 1155306.11 | K155: 1137254.43 | L155: 1119202.75 | M155: 1101151.07 | N155: 1083099.39
A156: 1823301 | B156: SFAS 109 Flow Thru Defd FIT | C156: 36935498.79 | D156: 36935498.79 | E156: 38008423.79 | F156: 38008423.79 | G156: 38008423.79 | H156: 36976573.31 | I156: 36976573.31 | J156: 36976573.31 | K156: 37189871.06 | L156: 36981654.14 | M156: 37170371.3 | N156: 37585713.33
A157: 1823302 | B157: SFAS 109 Flow Thru Defrd SIT | C157: 104847034.5 | D157: 104847034.5 | E157: 104847034.5 | F157: 104847034.5 | G157: 104847034.5 | H157: 107332212.6 | I157: 107332212.6 | J157: 107332212.6 | K157: 99259399.61 | L157: 112196466.6 | M157: 109452744.6 | N157: 111261340.4
A158: 1823306 | B158: Net CCS FEED Study Costs | C158: 747748.52 | D158: 744838.99 | E158: 741929.46 | F158: 739019.93 | G158: 736110.4 | H158: 733200.87 | I158: 730291.34 | J158: 727381.81 | K158: 724472.28 | L158: 721562.75 | M158: 718653.22 | N158: 715743.69
A159: 1823376 | B159: Cost of Removal-Big Sandy Coal | C159: -31794829.03 | D159: -31762452.6 | E159: -30858064.19 | F159: -30125471.96 | G159: -30215769.69 | H159: -30174473.34 | I159: -29906838.76 | J159: -29728674.53 | K159: -29554501.62 | L159: -29394793.12 | M159: -29253850.02 | N159: -29068726.53
A160: 1823377 | B160: NBV - AROs Retired Plants | C160: 27368329.99 | D160: 26204504.48 | E160: 46354811.58 | F160: 44602944.77 | G160: 41581941.53 | H160: 38699159.45 | I160: 36884839.15 | J160: 34947053.41 | K160: 33013039.56 | L160: 31078517.35 | M160: 29464347.29 | N160: 28715204.67
A161: 1823378 | B161: M&S - Retiring Plants | C161: 3015785.42 | D161: 3015785.42 | E161: 3015785.42 | F161: 3015785.42 | G161: 3015785.42 | H161: 3015785.42 | I161: 3015785.42 | J161: 3015785.42 | K161: 3015785.42 | L161: 3015785.42 | M161: 3015785.42 | N161: 3015785.42
A162: 1823379 | B162: Unrecovered Plant - Big Sandy | C162: 256546287.9 | D162: 256546287.9 | E162: 256546287.9 | F162: 256546287.9 | G162: 256509064.9 | H162: 256509064.9 | I162: 256509064.9 | J162: 256509064.9 | K162: 256509064.9 | L162: 256509064.9 | M162: 256509064.9 | N162: 256509061.9
A163: 1823380 | B163: Spent AROs - Big Sandy Coal | C163: 65752766.22 | D163: 67022847.93 | E163: 68401698.11 | F163: 70335219.77 | G163: 73530901.07 | H163: 76576113.77 | I163: 78541207.75 | J163: 80622428.06 | K163: 82691774.03 | L163: 84753540.38 | M163: 86486730.46 | N163: 87359214.72
A164: 1823410 | B164: BS1OR Unrecognized Equity CC | C164: -1749279.59 | D164: -1749279.59 | E164: -1749279.59 | F164: -1749279.59 | G164: -1749279.59 | H164: -1749279.59 | I164: -1749279.59 | J164: -1749279.59 | K164: -1749279.59 | L164: -1749279.59 | M164: -1749279.59 | N164: -1749279.59
A165: 1823411 | B165: BS1OR Under Recovery CC | C165: 3541730.57 | D165: 3541730.57 | E165: 3541730.57 | F165: 3541730.57 | G165: 3541730.57 | H165: 3541730.57 | I165: 3541730.57 | J165: 3541730.57 | K165: 3541730.57 | L165: 3541730.57 | M165: 3541730.57 | N165: 3541730.57
A166: 1823414 | B166: Capacity Charge Tariff Rev | C166: 0 | D166: 0 | E166: 0 | F166: 0 | G166: 0 | H166: 0 | I166: 0 | J166: 0 | K166: 0 | L166: 27926.96 | M166: 116532.38 | N166: 88267.77
A167: 1823429 | B167: Rockport Capacity Def-Eqty CC | C167: -220130.56 | D167: -258558.11 | E167: -300079.83 | F167: -344695.72 | G167: -392405.77 | H167: -443209.99 | I167: -497108.38 | J167: -554100.93 | K167: -614187.65 | L167: -677368.54 | M167: -743643.59 | N167: -813012.81
A168: 1823430 | B168: Rockport Capacity CC Deferral | C168: 461337.44 | D168: 541871.78 | E168: 628890.7 | F168: 722394.21 | G168: 822382.3 | H168: 928854.97 | I168: 1041812.23 | J168: 1161254.07 | K168: 1287180.49 | L168: 1419591.5 | M168: 1558487.09 | N168: 1703867.26
A169: 1823431 | B169: Rockport Capacity Deferral | C169: 15524193.55 | D169: 16774193.55 | E169: 18024193.55 | F169: 19274193.55 | G169: 20524193.55 | H169: 21774193.55 | I169: 23024193.55 | J169: 24274193.55 | K169: 25524193.55 | L169: 26774193.55 | M169: 28024193.55 | N169: 29274193.55
A170: 1823515 | B170: IGCC Pre-Construction Costs | C170: 1140440.88 | D170: 1136003.37 | E170: 1131565.86 | F170: 1127128.35 | G170: 1122690.84 | H170: 1118253.33 | I170: 1113815.82 | J170: 1109378.31 | K170: 1104940.8 | L170: 1100503.29 | M170: 1096065.78 | N170: 1091628.27
A171: 1823516 | B171: BS1OR Under Recovery | C171: -2107047.09 | D171: -2107047.09 | E171: -2107047.09 | F171: -2107047.09 | G171: -2107047.09 | H171: -2107047.09 | I171: -2107047.09 | J171: -2107047.09 | K171: -2107047.09 | L171: -2107047.09 | M171: -2107047.09 | N171: -2107047.09
A172: 1823517 | B172: Big Sandy Recov O/U Balancing | C172: -14677267.89 | D172: -15164924.72 | E172: -15947855.55 | F172: -16143701.52 | G172: -16526966.01 | H172: -16881130.68 | I172: -17443311.06 | J172: -17950833.08 | K172: -18360670.35 | L172: -18720150.93 | M172: -19393682.98 | N172: -20219355.2
A173: 1823518 | B173: BSDR Unit 2 O&M | C173: 917490.78 | D173: 917660.49 | E173: 905858.06 | F173: 906017.3 | G173: 906532.35 | H173: 906532.35 | I173: 908485.26 | J173: 976578.45 | K173: 1005305.22 | L173: 1048739.29 | M173: 1077342.1 | N173: 1105401.91
A174: 1823520 | B174: Under Recovery-Environmental | C174: 4133173.73 | D174: 3840396.73 | E174: 5094558.73 | F174: 6016676.73 | G174: 6862624.73 | H174: 6852843.73 | I174: 6280806.73 | J174: 4378316.73 | K174: 4419590.73 | L174: 4779075.73 | M174: 5390927.55 | N174: 4347619.55
A175: 1823536 | B175: CC-NERC Compl/Cyber Unrec Eqty | C175: -15869.97 | D175: -15746.65 | E175: -28089.61 | F175: -29071.27 | G175: -30056.76 | H175: -31045.13 | I175: -32036 | J175: -33265.64 | K175: -34298.19 | L175: -35538.62 | M175: -36783.51 | N175: -37986.73
A176: 1823537 | B176: CC-NERC Compliance/Cyber Sec | C176: 32041.11 | D176: 31795.45 | E176: 57669.3 | F176: 59739.41 | G176: 61817.55 | H176: 63901.71 | I176: 65991.12 | J176: 68580.91 | K176: 70757.67 | L176: 73370.09 | M176: 75991.87 | N176: 78526.3
A177: 1823538 | B177: Def Depr-NERC Compli/Cybersec | C177: 97722.42 | D177: 96980.06 | E177: 180034.7 | F177: 186732.3 | G177: 193455.67 | H177: 200198.42 | I177: 206958.03 | J177: 215325.23 | K177: 222365.48 | L177: 230805.39 | M177: 239275.38 | N177: 247464.76
A178: 1823547 | B178: Def Depr-Big Sandy Unit 1 Gas | C178: 1038595.87 | D178: 1038595.87 | E178: 1038595.87 | F178: 1038595.87 | G178: 1038595.87 | H178: 1038595.87 | I178: 1038595.87 | J178: 1038595.87 | K178: 1038595.87 | L178: 1038595.87 | M178: 1038595.87 | N178: 1038595.87
A179: 1823550 | B179: Def Prop Tax-Big Sandy U1 Gas | C179: 359437.53 | D179: 359437.53 | E179: 359437.53 | F179: 359437.53 | G179: 359437.53 | H179: 359437.53 | I179: 359437.53 | J179: 359437.53 | K179: 359437.53 | L179: 359437.53 | M179: 359437.53 | N179: 359437.53
A180: 1823557 | B180: KY Under-recovered PPA Rider | C180: 0.002 | D180: 0.002 | E180: 0.002 | F180: 0.002 | G180: 0.002 | H180: 0.002 | I180: 0.002 | J180: 0.002 | K180: 0.002 | L180: 0.002 | M180: 0.002 | N180: 0.002
A181: 1823571 | B181: GreenHat Settlement Reg Deferr | C181: 0 | D181: 0 | E181: 0 | F181: 0 | G181: 0 | H181: 0 | I181: 0 | J181: 0 | K181: 0 | L181: 0 | M181: 0 | N181: 268516.77
A182: 1823587 | B182: COVID-19 Deferred Expense | C182: 0 | D182: 0 | E182: 0 | F182: 0 | G182: 0 | H182: 0 | I182: 0 | J182: 0 | K182: 0 | L182: 0 | M182: 0 | N182: 0
A183: 1823588 | B183: COVID-19 Defer Expense-Contra | C183: 0 | D183: 0 | E183: 0 | F183: 0 | G183: 0 | H183: 0 | I183: 0 | J183: 0 | K183: 0 | L183: 0 | M183: 0 | N183: 0
A184: 1830000 | B184: Prelimin Surv&Investgtn Chrgs | C184: 2863649.86 | D184: 2912483.32 | E184: 3069237.62 | F184: 3210782.7 | G184: 3163936.79 | H184: 3161184.22 | I184: 3388287.77 | J184: 3482001.43 | K184: 3649349.9 | L184: 3790120.97 | M184: 3326723.065 | N184: 1397985.332
A185: 1840001 | B185: Bldg Servcs Oper Exp-Clearing | C185: 0 | D185: 0 | E185: 0 | F185: 0 | G185: 0 | H185: 0 | I185: 0 | J185: 0 | K185: 0 | L185: 0 | M185: 0 | N185: 0
A186: 1840002 | B186: Accounts Pay Adj - Clearing | C186: 0 | D186: 0 | E186: 0 | F186: 0 | G186: 0 | H186: 0 | I186: 0 | J186: -4941.09 | K186: 0 | L186: -4941.09 | M186: 0 | N186: 0
A187: 1840004 | B187: Undistributed Payroll-Clearing | C187: 0 | D187: 0 | E187: 0 | F187: 0 | G187: 0 | H187: 0 | I187: 0 | J187: 0 | K187: 0 | L187: 0 | M187: 0 | N187: 0
A188: 1840006 | B188: Telephone Expense - Clearing | C188: 0 | D188: 0 | E188: 0 | F188: 0 | G188: 0 | H188: 0 | I188: 0 | J188: 0 | K188: 0 | L188: 0 | M188: 0 | N188: 0
A189: 1840023 | B189: Factored Cust Accts Rec-Affil | C189: 0 | D189: 0 | E189: 0 | F189: 0 | G189: 0 | H189: 0 | I189: 448420.56 | J189: 0 | K189: 0 | L189: 0 | M189: 0 | N189: 0
A190: 1840029 | B190: Transp-Assigned Vehicles | C190: 0 | D190: 0 | E190: 0 | F190: 0 | G190: 0 | H190: 0 | I190: 0 | J190: 0 | K190: 0 | L190: 0 | M190: 0 | N190: 0
A191: 1840031 | B191: Affil Transactions-Cash Clrng | C191: 0 | D191: 0 | E191: 0 | F191: 0 | G191: 0 | H191: 0 | I191: 0 | J191: 0 | K191: 0 | L191: 0 | M191: 0 | N191: 0
A192: 1840057 | B192: Cell Phone/Pager - Clearing | C192: 0 | D192: 0 | E192: 0 | F192: 0 | G192: 0 | H192: 0 | I192: 0 | J192: 0 | K192: 0 | L192: 0 | M192: 0 | N192: 0
A193: 1840063 | B193: Corporate Charge Card Clearing | C193: 0 | D193: 0 | E193: 0 | F193: 0 | G193: 0 | H193: 0 | I193: 0 | J193: 0 | K193: 0 | L193: 0 | M193: 0 | N193: 0
A194: 1850000 | B194: Temporary Facilities | C194: 0 | D194: 0 | E194: 0 | F194: 0 | G194: 0 | H194: 0 | I194: 0 | J194: 0 | K194: 0 | L194: 0 | M194: 0 | N194: 0
A195: 1860001 | B195: Allowances | C195: 201.52 | D195: 201.52 | E195: 45733.7 | F195: 201.52 | G195: 201.52 | H195: 22967.61 | I195: -618.48 | J195: -618.48 | K195: 18693.26 | L195: -1268.48 | M195: 201.52 | N195: 0
A196: 1860002 | B196: Deferred Expenses | C196: 4353.66 | D196: 4127.69 | E196: 15883.62 | F196: 15846.66 | G196: 23845.76 | H196: 13087.43 | I196: 13017.84 | J196: 8329.25 | K196: 6910.82 | L196: 7320.31 | M196: 8152.47 | N196: 8893.74
A197: 186000317 | B197: Deferred Property Taxes | C197: 1268746.79 | D197: 1014997.79 | E197: 761248.79 | F197: 507499.79 | G197: 253750.79 | H197: 0 | I197: 0 | J197: 0 | K197: 0 | L197: 0 | M197: 0 | N197: 0
A198: 186000318 | B198: Deferred Property Taxes | C198: 16936396 | D198: 15667379 | E198: 14398362 | F198: 13129345 | G198: 11860328 | H198: 10591311 | I198: 9049397.53 | J198: 7534533.53 | K198: 6019669.53 | L198: 4504805.53 | M198: 2810902.54 | N198: 1475081.53
A199: 186000319 | B199: Deferred Property Taxes | C199: 0 | D199: 0 | E199: 0 | F199: 0 | G199: 0 | H199: 0 | I199: 0 | J199: 0 | K199: 0 | L199: 0 | M199: 0 | N199: 18930421
A200: 1860005 | B200: Unidentified Cash Receipts | C200: 0 | D200: 0 | E200: 0 | F200: -100 | G200: -100 | H200: 0 | I200: 0 | J200: 0 | K200: 0 | L200: 0 | M200: 0 | N200: 0
A201: 1860007 | B201: Billings and Deferred Projects | C201: 58371.567 | D201: 85004.337 | E201: 151397.277 | F201: 346029.387 | G201: 308423.247 | H201: 278619.327 | I201: 336511.877 | J201: 336440.077 | K201: 559107.617 | L201: 546699.957 | M201: 614312.957 | N201: 546358.687
A202: 1860015 | B202: Billings Paid Union Benefits | C202: 0 | D202: 0 | E202: 0 | F202: 0 | G202: 0 | H202: 0 | I202: 0 | J202: 0 | K202: 0 | L202: 0 | M202: 0 | N202: 0
... 717 more rows

Sheet Jan - Mar 2020
A1: Kentucky Power Corp Consol
A2: January - March 2020 Trial Balances
A4: Account Number | B4: Account Description | C4: Jan 2020 | D4: Feb 2020 | E4: Mar 2020
A6: 1010001 | B6: Plant in Service | C6: 2747275243 | D6: 2760486629 | E6: 2776251411
A7: 1010008 | B7: Cloud Implement - PIS | C7: 0 | D7: 61769.43 | E7: 101691.05
A8: 1011001 | B8: Capital Leases | C8: 4745383.4 | D8: 5067331.87 | E8: 5124115.44
A9: 1011006 | B9: Prov-Leased Assets | C9: -1767292.31 | D9: -1748742.31 | E9: -1808164.81
A10: 1011012 | B10: Accrued Capital Leases | C10: 417728.6 | D10: 269743.3 | E10: 366065.54
A11: 1011031 | B11: Operating Lease | C11: 11811449.67 | D11: 12281713.79 | E11: 12489107.57
A12: 1011032 | B12: Accrued Operating Leases | C12: 634835.23 | D12: 349531.15 | E12: 611516.44
A13: 1011034 | B13: Operating Leases - Gen & Misc | C13: 0 | D13: 0 | E13: 0
A14: 1011036 | B14: Prov - Operating Lease Assets | C14: -1990080.21 | D14: -2097196.21 | E14: -2255261.54
A15: 1011039 | B15: Prov-Operating Lease -Gen&Misc | C15: 0 | D15: 0 | E15: 0
A16: 1050001 | B16: Held For Fut Use | C16: 556145.38 | D16: 556145.38 | E16: 556145.38
A17: 1060001 | B17: Const Not Classifd | C17: 125303431.5 | D17: 130220980.9 | E17: 127412236.7
A18: 1060007 | B18: Cloud Implement - CCNC | C18: 61769.43 | D18: 39921.62 | E18: 40670.43
A19: 1070000 | B19: Construction Work In Progress | C19: 0 | D19: 0 | E19: 0
A20: 1070001 | B20: CWIP - Project | C20: 103785276.7 | D20: 94471473.59 | E20: 91925129.84
A21: 1080000 | B21: Accum Prov for Deprec of Plant | C21: 0 | D21: 0 | E21: 0
A22: 1080001 | B22: A/P for Deprec of Plt | C22: -997341149.3 | D22: -1001137097 | E22: -1001549787
A23: 1080005 | B23: RWIP - Project Detail | C23: 7916392.869 | D23: 6938929.839 | E23: 5979065.929
A24: 1080011 | B24: Cost of Removal Reserve | C24: -25592281.29 | D24: -26192264.43 | E24: -30043113.65
A25: 1080013 | B25: ARO Removal Deprec - Accretion | C25: 3097747.26 | D25: 3118110.96 | E25: 3138249.45
A26: 1110001 | B26: A/P for Amort of Plt | C26: -20186442.38 | D26: -20758160.78 | E26: -19969092.33
A27: 1110007 | B27: Cloud Implement - A/P Amrt Plt | C27: 0 | D27: -1029.49 | E27: -2724.34
A28: 1210001 | B28: Nonutility Property - Owned | C28: 6670697.79 | D28: 6670697.79 | E28: 6670697.79
A29: 1220001 | B29: Depr&Amrt of Nonutl Prop-Ownd | C29: -255529.88 | D29: -256085.69 | E29: -256641.5
A30: 1220003 | B30: Depr&Amrt of Nonutl Prop-WIP | C30: 34402.1 | D30: 96300.51 | E30: 96666.49
A31: 1240002 | B31: Oth Investments-Nonassociated | C31: 806 | D31: 806 | E31: 806
A32: 1240005 | B32: Spec Allowance Inv NOx | C32: 8299.4 | D32: 8299.4 | E32: 8299.4
A33: 1240007 | B33: Deferred Compensation Benefits | C33: 28847.93 | D33: 28847.93 | E33: 28847.93
A34: 1240027 | B34: Other Property - RWIP | C34: -42635.04 | D34: -42635.04 | E34: -42635.04
A35: 1240028 | B35: Other Property - RETIRE | C35: -18.87 | D35: -18.87 | E35: -18.87
A36: 1240029 | B36: Other Property - CPR | C36: 1790332.73 | D36: 1790332.73 | E36: 1790332.73
A37: 1240092 | B37: Fbr Opt Lns-In Kind Sv-Invest | C37: 101042 | D37: 99879 | E37: 98716
A38: 1290000 | B38: Pension Net Funded Position | C38: 0 | D38: 0 | E38: 0
A39: 1290001 | B39: Non-UMWA PRW Funded Position | C39: 23421499.13 | D39: 23421499.13 | E39: 22868170.63
A40: 1290002 | B40: SFAS 106 - Non-UMWA PRW | C40: 349474.54 | D40: 698997.97 | E40: 1031681.98
A41: 1290003 | B41: SFAS 87 - Pension | C41: 0 | D41: 0 | E41: 0
A42: 1310000 | B42: Cash | C42: 880899.21 | D42: 1162717.82 | E42: 629015.21
A43: 1340018 | B43: Spec Deposits - Elect Trading | C43: 23.622 | D43: 487723.622 | E43: 23.622
A44: 1340048 | B44: Spec Deposits-Trading Contra | C44: -41278.48 | D44: -378485.15 | E44: -1016028.11
A45: 1340050 | B45: Spec Deposit Mizuho Securities | C45: 34597.41 | D45: 54682.54 | E45: 77996.89
A46: 1340051 | B46: Spec Depost RBC | C46: 419577.77 | D46: 436417.25 | E46: 499801.14
A47: 1340053 | B47: Deposits - Flexible Spending | C47: 17597.33 | D47: 17597.33 | E47: 17597.33
A48: 1340055 | B48: Spec Dep Affil - Elect Trading | C48: 0 | D48: 0 | E48: 0
A49: 1340057 | B49: Wells Fargo Securities, LLC | C49: 81773.27 | D49: 394964.58 | E49: 802457.6
A50: 1420001 | B50: Customer A/R - Electric | C50: 41694803.32 | D50: 41240975.08 | E50: 38660101.3
A51: 1420014 | B51: Customer A/R-System Sales | C51: 638808.43 | D51: 638178.2 | E51: 551894.39
A52: 1420019 | B52: Transmission Sales Receivable | C52: 5274 | D52: 10333.5 | E52: 9166.5
A53: 1420022 | B53: Cust A/R - Factored | C53: -36398121.19 | D53: -35634197.68 | E53: -35533298.68
A54: 1420023 | B54: Cust A/R-System Sales - MLR | C54: 1118598.635 | D54: 1014479.195 | E54: 888023.945
A55: 1420024 | B55: Cust A/R-Options & Swaps - MLR | C55: 24489.87 | D55: 24079.36 | E55: 27262.36
A56: 1420027 | B56: Low Inc Energy Asst Pr (LIEAP) | C56: 82512 | D56: 22199 | E56: 1364
A57: 1420028 | B57: Emergency LIEAP | C57: 664765.08 | D57: 990383.38 | E57: 360184.04
A58: 1420042 | B58: Cust A/R - Special Contracts | C58: 4478.97 | D58: 1010.56 | E58: -22954.44
A59: 1420044 | B59: Customer A/R - Estimated | C59: 514090 | D59: 413469 | E59: 80119
A60: 1420048 | B60: Emission Allowance Trading | C60: -38000 | D60: -47200 | E60: 0
A61: 1420050 | B61: PJM AR Accrual | C61: 291674.31 | D61: 0 | E61: 0.001
A62: 1420054 | B62: Accrued Power Brokers | C62: 419030.16 | D62: 478200.95 | E62: 0
A63: 1420058 | B63: Cust A/R-Contra-Home Warranty | C63: -99808.91 | D63: -99062.83 | E63: -102394.76
A64: 1420059 | B64: AR PS Bill-Cust Home Warranty | C64: 17965.54 | D64: 17831.25 | E64: 18431
A65: 1420060 | B65: PJM Trans Enhancement Refund | C65: 642162.57 | D65: 643053.81 | E65: 643945.05
A66: 1420102 | B66: AR Peoplesoft Billing - Cust | C66: 1255005.89 | D66: 2215368.41 | E66: 1395356.33
A67: 1420103 | B67: AR Long-Term-Customer | C67: 3241326.14 | D67: 3186995.62 | E67: 3132665.1
A68: 1430002 | B68: Allowances | C68: 0 | D68: 0 | E68: 0
A69: 1430022 | B69: 2001 Employee Biweekly Pay Cnv | C69: 36741.09 | D69: 35575.53 | E69: 36197.73
A70: 1430023 | B70: A/R PeopleSoft Billing System | C70: 0 | D70: 0 | E70: 0
A71: 1430081 | B71: Damage Recovery - Third Party | C71: 38024.6 | D71: 1327.65 | E71: 2041
A72: 1430083 | B72: Damage Recovery Offset Demand | C72: -39227.002 | D72: -2096.652 | E72: -2041
A73: 1430101 | B73: Other Accounts Rec - Misc | C73: 0 | D73: 0 | E73: 0
A74: 1430102 | B74: AR Peoplesoft Billing - Misc | C74: 103629.03 | D74: 56785.28 | E74: 51433.27
A75: 1440002 | B75: Uncoll Accts-Other Receivables | C75: -180205.34 | D75: -181924.32 | E75: -531063.35
A76: 1460001 | B76: A/R Assoc Co - InterUnit G/L | C76: 13897395.73 | D76: 15722505.47 | E76: 18930718.93
A77: 1460006 | B77: A/R Assoc Co - Intercompany | C77: -647989.79 | D77: 254637.64 | E77: 164192.33
A78: 1460009 | B78: A/R Assoc Co - InterUnit A/P | C78: 153.31 | D78: 1641.16 | E78: 0.02
A79: 1460011 | B79: A/R Assoc Co - Multi Pmts | C79: 682077.95 | D79: 711572.01 | E79: 1672656.91
A80: 1460025 | B80: Fleet - M4 - A/R | C80: 142655.54 | D80: 107087.7 | E80: 174875.39
A81: 1510001 | B81: Fuel Stock - Coal | C81: 25815245.59 | D81: 21403163.34 | E81: 21443205.88
A82: 1510002 | B82: Fuel Stock - Oil | C82: 733992.58 | D82: 768358.9 | E82: 810543.69
A83: 1510003 | B83: Fuel Stock - Gas | C83: 44110.03 | D83: 43784.61 | E83: 43784.61
A84: 1510020 | B84: Fuel Stock Coal - Intransit | C84: 182161.75 | D84: 323323.97 | E84: 86309.98
A85: 1520000 | B85: Fuel Stock Exp Undistributed | C85: 1340840.624 | D85: 1209958.944 | E85: 1168045.574
A86: 1540001 | B86: M&S - Regular | C86: 14259444.4 | D86: 14493340.98 | E86: 14437791.92
A87: 1540003 | B87: Material in Transit | C87: 33229.61 | D87: 45931.21 | E87: 91230.23
A88: 1540004 | B88: M&S - Exempt Material | C88: 84686.417 | D88: 85680.917 | E88: 85680.917
A89: 1540006 | B89: M&S - Lime and Limestone | C89: 2105175.95 | D89: 1824320.95 | E89: 1723249.02
A90: 1540012 | B90: Materials & Supplies - Urea | C90: 292049.63 | D90: 223957.65 | E90: 157319.73
A91: 1540013 | B91: Transportation Inventory | C91: 336711.3 | D91: 336711.3 | E91: 336711.3
A92: 1540014 | B92: Indus Direct Charge Clearing | C92: 0 | D92: 0 | E92: 0
A93: 1540016 | B93: MMS - Truck Stock | C93: 0 | D93: 0 | E93: 0
A94: 1540022 | B94: M&S-Lime & Limestone Intransit | C94: 197066.65 | D94: -54905.74 | E94: 0
A95: 1540023 | B95: M&S Inv - Urea In-Transit | C95: 508732.09 | D95: 508732.09 | E95: 508732.09
A96: 1581000 | B96: SO2 Allowance Inventory | C96: 8399493.35 | D96: 8399493.35 | E96: 8404073.26
A97: 1581003 | B97: SO2 Allowance Inventory - Curr | C97: 269674.58 | D97: 267151.9 | E97: 257143.91
A98: 1581009 | B98: CSAPR Current SO2 Inv | C98: 25032.97 | D98: 25013 | E98: 24972.94
A99: 1630004 | B99: Strs Exp-T&D Satellite Storerm | C99: 0 | D99: 0 | E99: 0
A100: 1630019 | B100: Stores Exp - Big Sandy Plant | C100: 0 | D100: 0 | E100: 0
A101: 1630023 | B101: Stores Exp - Mitchell Plant | C101: 0 | D101: 0 | E101: 0
A102: 1630032 | B102: Stores Exp - Power Gen General | C102: 0 | D102: 0 | E102: 0
A103: 1630033 | B103: Stores Exp - All Busin Units | C103: 0 | D103: 0 | E103: 0
A104: 1630109 | B104: Strs Exp - ACCT-COUNT-ADJ | C104: 0 | D104: 0 | E104: 0
A105: 1650001 | B105: Prepaid Insurance | C105: 446375.21 | D105: 354685.33 | E105: 262995.45
A106: 165000218 | B106: Prepaid Taxes | C106: 0 | D106: 0 | E106: 0
A107: 165000219 | B107: Prepaid Taxes | C107: 498715.35 | D107: 398972.27 | E107: 299229.19
A108: 1650005 | B108: Prepaid Employee Benefits | C108: 0 | D108: 0 | E108: 0
A109: 1650006 | B109: Other Prepayments | C109: 137500 | D109: 125000 | E109: 217346.26
A110: 1650009 | B110: Prepaid Carry Cost-Factored AR | C110: 44185.02 | D110: 29965.75 | E110: 32904.67
A111: 1650010 | B111: Prepaid Pension Benefits | C111: 45282821.03 | D111: 45065536.45 | E111: 44879334.11
A112: 165001118 | B112: Prepaid Sales Taxes | C112: 0 | D112: 0 | E112: 0
A113: 165001119 | B113: Prepaid Sales Taxes | C113: 0 | D113: 0 | E113: 0
A114: 165001120 | B114: Prepaid Sales Taxes | C114: 375134 | D114: 396154 | E114: 327363
A115: 165001218 | B115: Prepaid Use Taxes | C115: 0 | D115: 0 | E115: 0
A116: 165001219 | B116: Prepaid Use Taxes | C116: 0 | D116: 0 | E116: 0
A117: 165001220 | B117: Prepaid Use Taxes | C117: 69979 | D117: 150318 | E117: 37418
A118: 1650014 | B118: FAS 158 Qual Contra Asset | C118: -45282821.03 | D118: -45065536.45 | E118: -44879334.11
A119: 1650021 | B119: Prepaid Insurance - EIS | C119: 396202.943 | D119: 280078.423 | E119: 621132.573
A120: 1650023 | B120: Prepaid Lease | C120: 36000 | D120: 36000 | E120: 36000
A121: 1650035 | B121: PRW Without MED-D Benefits | C121: 19492750.67 | D121: 19842274.1 | E121: 20174958.11
A122: 1650037 | B122: FAS158 Contra-PRW Exclud Med-D | C122: -19492750.67 | D122: -19842274.1 | E122: -20174958.11
A123: 1720000 | B123: Rents Receivable | C123: 3295015.68 | D123: 3565397.96 | E123: 3835780.24
A124: 1730000 | B124: Accrued Utility Revenues | C124: 21708004.43 | D124: 22100481.27 | E124: 18005291.17
A125: 1730002 | B125: Acrd Utility Rev-Factored-Assc | C125: -11241106.25 | D125: -8907902.05 | E125: -6462621.05
A126: 174001116 | B126: Non-Highway Fuel Tax Credit | C126: 0 | D126: 0 | E126: 0
A127: 1750001 | B127: Curr. Unreal Gains - NonAffil | C127: 7115631.05 | D127: 7072767.06 | E127: 3457220.91
A128: 1750002 | B128: Long-Term Unreal Gns - Non Aff | C128: 37709.17 | D128: 24882.62 | E128: 21744.48
A129: 1750021 | B129: S/T Asset MTM Collateral | C129: -180197.94 | D129: 0 | E129: 0
A130: 1750022 | B130: L/T Asset MTM Collateral | C130: -6516.08 | D130: 0 | E130: 0
A131: 1810002 | B131: Unamort Debt Exp - Inst Pur Cn | C131: 18574.02 | D131: 13930.51 | E131: 9287.01
A132: 1810003 | B132: Unamort Debt Exp Notes Payable | C132: 335125.56 | D132: 324652.88 | E132: 357037.94
A133: 1810006 | B133: Unamort Debt Exp - Sr Unsec Nt | C133: 2057851.31 | D133: 2037463.5 | E133: 2017075.7
A134: 1823000 | B134: Other Regulatory Assets | C134: -6159.06 | D134: -59505.57 | E134: -97850.66
A135: 1823007 | B135: SFAS 112 Postemployment Benef | C135: 3169205.33 | D135: 3169205.33 | E135: 3437459.33
A136: 1823009 | B136: DSM Incentives | C136: 4513463.58 | D136: 4513766.16 | E136: 4514068.74
A137: 1823010 | B137: Energy Efficiency Recovery | C137: -63348056.72 | D137: -63390129.75 | E137: -63426641.83
A138: 1823011 | B138: DSM Lost Revenues | C138: 15963115.5 | D138: 15987681 | E138: 16012246.5
A139: 1823012 | B139: DSM Program Costs | C139: 42871477.64 | D139: 42888682.59 | E139: 42900326.59
A140: 1823022 | B140: HRJ 765kV Post Service AFUDC | C140: 429000 | D140: 426216 | E140: 423432
A141: 1823054 | B141: HRJ 765kV Depreciation Expense | C141: 66839 | D141: 66405 | E141: 65971
A142: 1823063 | B142: Unrecovered Fuel Cost | C142: -2473445.88 | D142: -2379528.88 | E142: 0
A143: 1823077 | B143: Unreal Loss on Fwd Commitments | C143: 2343752.93 | D143: 2510419.16 | E143: 1830979.69
A144: 1823078 | B144: Deferred Storm Expense | C144: 6127457.96 | D144: 5955244.72 | E144: 5783031.48
A145: 1823108 | B145: Reg Asset - Rate Case Expenses | C145: 442316.41 | D145: 404121.97 | E145: 366627.53
A146: 1823115 | B146: Defd Equity Carry Chg-Non Fuel | C146: 0 | D146: 0 | E146: 0
A147: 1823118 | B147: BridgeCo TO Funding | C147: -0.002 | D147: -0.002 | E147: -0.002
A148: 1823120 | B148: Other PJM Integration | C148: 0.005 | D148: 0.005 | E148: 0.005
A149: 1823121 | B149: Carry Chgs-RTO Startup Costs | C149: 0 | D149: 0 | E149: 0
A150: 1823122 | B150: Alliance RTO Deferred Expense | C150: -0.005 | D150: -0.005 | E150: -0.005
A151: 1823165 | B151: REG ASSET FAS 158 QUAL PLAN | C151: 45940166 | D151: 45940166 | E151: 45132948.25
A152: 1823166 | B152: REG ASSET FAS 158 OPEB PLAN | C152: -2107133 | D152: -2107133 | E152: -1602939.88
A153: 1823167 | B153: REG Asset FAS 158 SERP Plan | C153: -101171 | D153: -101171 | E153: -101706.25
A154: 1823196 | B154: OSS Margin Sharing | C154: -0.004 | D154: -0.004 | E154: -0.004
A155: 1823299 | B155: SFAS 106 Medicare Subsidy | C155: 1065047.71 | D155: 1046996.03 | E155: 1028944.35
A156: 1823301 | B156: SFAS 109 Flow Thru Defd FIT | C156: 37585713.33 | D156: 37585713.33 | E156: 37455597.98
A157: 1823302 | B157: SFAS 109 Flow Thru Defrd SIT | C157: 111261340.4 | D157: 111261340.4 | E157: 111887420.4
A158: 1823306 | B158: Net CCS FEED Study Costs | C158: 712834.16 | D158: 709924.63 | E158: 707015.1
A159: 1823376 | B159: Cost of Removal-Big Sandy Coal | C159: -28912462.46 | D159: -28805547.57 | E159: -28606038.83
A160: 1823377 | B160: NBV - AROs Retired Plants | C160: 27613986.55 | D160: 26653216.64 | E160: 25711512.66
A161: 1823378 | B161: M&S - Retiring Plants | C161: 3015785.42 | D161: 3015785.42 | E161: 3015785.42
A162: 1823379 | B162: Unrecovered Plant - Big Sandy | C162: 256509061.9 | D162: 256509061.9 | E162: 256509061.9
A163: 1823380 | B163: Spent AROs - Big Sandy Coal | C163: 88569521.04 | D163: 89641347.32 | E163: 90683934.29
A164: 1823410 | B164: BS1OR Unrecognized Equity CC | C164: -1749279.59 | D164: -1749279.59 | E164: -1749279.59
A165: 1823411 | B165: BS1OR Under Recovery CC | C165: 3541730.57 | D165: 3541730.57 | E165: 3541730.57
A166: 1823414 | B166: Capacity Charge Tariff Rev | C166: 23681.77 | D166: 22427.78 | E166: 36929.12
A167: 1823429 | B167: Rockport Capacity Def-Eqty CC | C167: -885476.2 | D167: -960002.36 | E167: -1036591.3
A168: 1823430 | B168: Rockport Capacity CC Deferral | C168: 1855732.02 | D168: 2011919.83 | E168: 2172430.7
A169: 1823431 | B169: Rockport Capacity Deferral | C169: 30107526.88 | D169: 30940860.21 | E169: 31774193.54
A170: 1823515 | B170: IGCC Pre-Construction Costs | C170: 1087190.76 | D170: 1082753.25 | E170: 1078315.74
A171: 1823516 | B171: BS1OR Under Recovery | C171: -2107047.09 | D171: -2107047.09 | E171: -2107047.09
A172: 1823517 | B172: Big Sandy Recov O/U Balancing | C172: -20996722.69 | D172: -21715000.96 | E172: -22137541.87
A173: 1823518 | B173: BSDR Unit 2 O&M | C173: 1129400.63 | D173: 1145507.5 | E173: 1165888.76
A174: 1823520 | B174: Under Recovery-Environmental | C174: 3576934.73 | D174: 4408004.73 | E174: 5559028.73
A175: 1823536 | B175: CC-NERC Compl/Cyber Unrec Eqty | C175: -39195.18 | D175: -40409.2 | E175: -55896.67
A176: 1823537 | B176: CC-NERC Compliance/Cyber Sec | C176: 81071.7 | D176: 83628.77 | E176: 116096.98
A177: 1823538 | B177: Def Depr-NERC Compli/Cybersec | C177: 255689.35 | D177: 263951.44 | E177: 368188.89
A178: 1823547 | B178: Def Depr-Big Sandy Unit 1 Gas | C178: 1038595.87 | D178: 1038595.87 | E178: 1038595.87
A179: 1823550 | B179: Def Prop Tax-Big Sandy U1 Gas | C179: 359437.53 | D179: 359437.53 | E179: 359437.53
A180: 1823557 | B180: KY Under-recovered PPA Rider | C180: 1610733.322 | D180: 1610733.322 | E180: 5956225.522
A181: 1823571 | B181: GreenHat Settlement Reg Deferr | C181: 278154.73 | D181: 313267.91 | E181: 333379.67
A182: 1823587 | B182: COVID-19 Deferred Expense | C182: 0 | D182: 0 | E182: 20377.39
A183: 1823588 | B183: COVID-19 Defer Expense-Contra | C183: 0 | D183: 0 | E183: -20377.39
A184: 1830000 | B184: Prelimin Surv&Investgtn Chrgs | C184: 1073420.195 | D184: 1028576.606 | E184: 1104859.952
A185: 1840001 | B185: Bldg Servcs Oper Exp-Clearing | C185: 0 | D185: 0 | E185: 0
A186: 1840002 | B186: Accounts Pay Adj - Clearing | C186: -1750 | D186: -1750 | E186: 0
A187: 1840004 | B187: Undistributed Payroll-Clearing | C187: 0 | D187: 0 | E187: 0
A188: 1840006 | B188: Telephone Expense - Clearing | C188: 0 | D188: 0 | E188: 0
A189: 1840023 | B189: Factored Cust Accts Rec-Affil | C189: 0 | D189: 0 | E189: 0
A190: 1840029 | B190: Transp-Assigned Vehicles | C190: 0 | D190: 0 | E190: 0
A191: 1840031 | B191: Affil Transactions-Cash Clrng | C191: 0 | D191: 0 | E191: 0
A192: 1840057 | B192: Cell Phone/Pager - Clearing | C192: 0 | D192: 0 | E192: 0
A193: 1840063 | B193: Corporate Charge Card Clearing | C193: 0 | D193: 0 | E193: 0
A194: 1850000 | B194: Temporary Facilities | C194: 0 | D194: 0 | E194: 0
A195: 1860001 | B195: Allowances | C195: -800 | D195: -1000 | E195: 195.65
A196: 1860002 | B196: Deferred Expenses | C196: 5524.85 | D196: 5641.8 | E196: 5635.61
A197: 186000317 | B197: Deferred Property Taxes | C197: 0 | D197: 0 | E197: 0
A198: 186000318 | B198: Deferred Property Taxes | C198: 1229234.53 | D198: 983387.53 | E198: 737540.53
A199: 186000319 | B199: Deferred Property Taxes | C199: 16494104 | D199: 15255887 | E199: 14017670
A200: 1860005 | B200: Unidentified Cash Receipts | C200: 0 | D200: -77 | E200: 0
A201: 1860007 | B201: Billings and Deferred Projects | C201: 570098.157 | D201: 539910.577 | E201: 363016.097
A202: 1860015 | B202: Billings Paid Union Benefits | C202: 0 | D202: 344.76 | E202: 0
... 717 more rows
